Cogmind - Beta 15 @@@ ROGUE MODE // 2025.06.20 @ 20:17:26 Player: puppuppit Result: Destroyed by G-73 Enforcer with Phase Gun Performance ------------- Evolutions (8) 4000 Regions Visited (29) 5800 Robots Destroyed (412) 2060 Value Destroyed (17814) 17814 Prototype IDs (81) 1620 Alien Tech Used (8) 1600 Bonus (22515) 22515 TOTAL SCORE: 55409 Bonus ------- Triggered High Security 1000 High Alert Combat Kills 5101 Follower Combat Kills 5068 Registered with UFD 300 Met Optimus in HQ 500 Met Zhirov 300 Met Warlord at Base 500 MAIN.C Attacked Warlord 500 Warlord Defense Kills 4038 Built Enhanced Grunts 300 A7 Reached Mainframe 300 Met R17 at Cetus 500 Hacked Protovariant 500 Met R17 at Research 2000 Scanned by Researcher 500 Met Sigix 2000 Friendly Fire -892 Cogmind --------- Core Integrity 0/1450 Matter 57/300 Energy 99/100 System Corruption 26% Temperature Cool (11) Movement Hovering (80) Location -2/Protoforge Parts ------- > --- POWER (2) -------- (None) > --- PROPULSION (9) --- Combat Antigrav System > --- UTILITY (8) ------ Small Storage Unit Advanced Weapon Cycler Hacking Suite Improved System Shield > --- WEAPON (4) ------- (None) > --- INVENTORY (8) ---- Advanced Coolant Injector Long-range Tractor Beam Dimensional Node Initializer Dimensional Node Initializer Ragnarok Missile Launcher Sigix Containment Pod Peak State ------------ > --- POWER ------------ Light Quantum Reactor Light Quantum Reactor > --- PROPULSION ------- Improved Antigrav System Combat Antigrav System Combat Antigrav System Combat Antigrav System Combat Antigrav System Combat Antigrav System Combat Antigrav System Combat Antigrav System Combat Linear Gravjet > --- UTILITY ---------- 2N-1CE's Frost Array Large Storage Unit Medium Regenerative Plating Thermal Barrier Hacking Suite Improved Hacking Suite Improved Hacking Suite Improved System Shield > --- WEAPON ----------- Heavy Quantum Rifle Enhanced Nova Cannon Cooled Nova Cannon Ragnarok Missile Launcher > --- INVENTORY -------- Light Quantum Reactor Vortex Chain Reactor Combat Antigrav System Combat Antigrav System Advanced Coolant Injector Experimental Coolant Injector Improved Matter Compressor Hardened Medium Armor Plating Experimental Focal Shield Advanced Force Field Long-range Tractor Beam Transdimensional Reconstructor Linear Accelerator Linear Accelerator [Rating: 193] Favorites ----------- Power Micro Fission Core Engine Ion Engine Power Core Micro Fission Core Reactor Compact Particle Reactor Propulsion Combat Antigrav System Treads Light Treads Leg Carbon-fiber Leg Wheel Armored Wheel Hover Unit Combat Antigrav System Flight Unit Xenon Bombardment Thruster Utility Large Storage Unit Device Advanced Heat Sink Storage Large Storage Unit Processor Improved Armor Integrity Analyzer Hackware Improved Hacking Suite Protection Centrium Medium Armor Plating Weapon KE Penetrator Energy Gun Improved EM Shotgun Energy Cannon Cooled Nova Cannon Ballistic Gun KE Penetrator Ballistic Cannon Linear Accelerator Launcher Ragnarok Missile Launcher Special Weapon Improved Remote Datajack Impact Weapon Great Maul Slashing Weapon Mining Claw Piercing Weapon Enhanced Force Lance Build | -11 -10 -10 -10 -9 -9 -6 -6 -6 -6 -6 -6 -6 -5 -5 -5 -5 -5 -5 -4 -4 -4 -4 -4 -3 -3 -3 -2 -2 -2 ------- Run | Yrd Mat Min Sub Rec Scr Fac Was Fac Ext Cet Arc Hub Fac Was Fac Upp Upp Zhi Pro Fac Upp Upp War Pro Res Tes Res Qua Frg Slots Evolved 16 | . . . . . . 8 . . . . . . 2 . . . . . . 2 . . . . 2 . 2 . . Power 1 | . . . . . . . . . . . . . 1 . . . . . . . . . . . . . . . . Propulsion 7 | . . . . . . 3 . . . . . . 1 . . . . . . 1 . . . . 2 . . . . Utility 6 | . . . . . . 3 . . . . . . . . . . . . . 1 . . . . . . 2 . . Weapon 2 | . . . . . . 2 . . . . . . . . . . . . . . . . . . . . . . . Parts Attached 450 | 7 9 . 9 1 11 60 2 7 12 4 . . 41 6 13 1 4 8 3 58 5 12 45 3 62 22 21 24 . Power 54 | 1 2 . . . 1 3 . . 2 . . . 6 . 2 1 1 1 . 8 . 1 7 1 5 3 5 4 . Engine 13 | 1 2 . . . . 3 . . 1 . . . 2 . . . 1 . . 2 . . . . . . . 1 . Core 16 | . . . . . 1 . . . 1 . . . 4 . 2 1 . . . 4 . 1 1 1 . . . . . Reactor 25 | . . . . . . . . . . . . . . . . . . 1 . 2 . . 6 . 5 3 5 3 . Propulsion 131 | 2 . . 3 1 5 19 . 3 . . . . 13 . 5 . . 1 1 20 1 3 13 . 23 8 4 6 . Treads 5 | 2 . . 2 . 1 . . . . . . . . . . . . . . . . . . . . . . . . Leg 8 | . . . . . . 8 . . . . . . . . . . . . . . . . . . . . . . . Wheel 9 | . . . 1 1 4 3 . . . . . . . . . . . . . . . . . . . . . . . Hover 92 | . . . . . . . . 3 . . . . 7 . 4 . . 1 1 19 1 3 12 . 23 8 4 6 . Flight 17 | . . . . . . 8 . . . . . . 6 . 1 . . . . 1 . . 1 . . . . . . Utility 150 | 2 2 . 1 . 3 19 1 1 3 3 . . 15 5 4 . 1 3 2 15 3 6 14 1 24 6 7 9 . Device 77 | 1 . . . . 2 8 1 . . . . . 10 2 1 . . . 2 11 2 2 9 1 12 5 2 6 . Storage 10 | 1 1 . . . 1 1 . . . . . . 1 . 1 . . 1 . 1 . . . . 1 . . 1 . Processor 26 | . . . 1 . . 8 . . . . . . 3 1 1 . . . . . 1 2 4 . 5 . . . . Hackware 16 | . . . . . . 2 . 1 1 1 . . 1 . 1 . . . . 3 . . . . 3 1 1 1 . Protection 21 | . 1 . . . . . . . 2 2 . . . 2 . . 1 2 . . . 2 1 . 3 . 4 1 . Artifact . | . . . . . . . . . . . . . . . . . . . . . . . . . . . . . . Weapon 115 | 2 5 . 5 . 2 19 1 3 7 1 . . 7 1 2 . 2 3 . 15 1 2 11 1 10 5 5 5 . Energy Gun 18 | . 2 . 1 . . 8 . . . 1 . . . . . . . . . . . . 4 . . 1 . 1 . Energy Cannon 12 | . . . . . . 4 . . . . . . 2 . . . . . . . . . . . . 1 2 3 . Ballistic Gun 32 | 2 2 . 1 . . 5 . 1 4 . . . 3 1 2 . 1 2 . 2 . 1 1 . 4 . . . . Ballistic Cannon 28 | . . . 1 . 1 . . 2 3 . . . 1 . . . . . . 11 1 . 2 1 2 1 1 1 . Launcher 12 | . 1 . 1 . 1 . 1 . . . . . . . . . . . . 1 . . 2 . 2 2 1 . . Special Weapon 5 | . . . . . . . . . . . . . . . . . 1 1 . . . . 2 . . . 1 . . Impact Weapon 4 | . . . . . . 2 . . . . . . 1 . . . . . . . . 1 . . . . . . . Slashing Weapon 2 | . . . 1 . . . . . . . . . . . . . . . . . . . . . 1 . . . . Piercing Weapon 2 | . . . . . . . . . . . . . . . . . . . . 1 . . . . 1 . . . . Special Melee Weapon . | . . . . . . . . . . . . . . . . . . . . . . . . . . . . . . Unidentified Prototypes 45 | . 1 . . . . 4 . . . . . . . . . . 1 6 . . . 1 12 . 7 7 1 5 . Corrupted Parts 6 | . 1 . 1 . . 2 . . . . . . 1 . . . . . . . . . . . . . . 1 . System Corruption 38 | . 8 . 10 . . 7 . . . . . . 9 . . . . . . . . . . . . . . 4 . Parts Lost 160 | . 3 . 5 . . 24 . 2 3 . . . 14 . 1 . . . 1 25 . 6 9 . 16 6 15 28 2 Power 18 | . 1 . . . . 2 . . . . . . 3 . . . . . . 3 . 1 1 . 1 . 1 5 . Propulsion 68 | . . . 3 . . 14 . . . . . . 5 . 1 . . . . 12 . 4 2 . 8 2 5 11 1 Utility 31 | . . . 1 . . 1 . 1 . . . . 3 . . . . . 1 6 . . 3 . 1 1 5 7 1 Weapon 43 | . 2 . 1 . . 7 . 1 3 . . . 3 . . . . . . 4 . 1 3 . 6 3 4 5 . Highest Loss Streak 20 | . 2 . 2 . . 10 . 1 2 . . . 5 . 1 . . . 1 6 . 3 3 . 3 3 6 20 1 To Critical Strikes 2 | . . . . . . . . . . . . . . . . . . . . . . . . . 2 . . . . Average Backups 10 | . 7 11 10 9 9 6 2 4 4 4 5 5 6 9 12 14 14 13 14 14 14 14 13 11 12 13 13 8 5 Power . | . . . . . . . . . . . . . . 1 1 1 1 1 . . . . . 1 1 1 1 1 . Propulsion 1 | . 1 2 1 . 1 1 . . 1 1 1 1 . . 1 2 2 3 4 2 2 1 2 2 2 3 1 . . Utility 4 | . 2 3 3 3 3 3 1 1 1 2 3 3 3 4 4 3 4 5 4 4 6 8 7 6 6 6 6 2 1 Weapon 2 | . 2 5 4 6 4 . 1 2 1 1 1 1 1 1 3 5 4 2 3 3 2 2 2 1 1 1 2 1 1 Tool/Special . | . . . . . . . . . . . . . . . . . . . . . . . . . . . . . . Unused Backups 66 | . 6 . 1 . 9 6 1 2 1 1 . 1 4 2 5 1 . 2 . 7 1 4 5 . 1 . . 4 2 Power 9 | . . . . . . 1 . . . . . . . 1 1 1 . . . 5 . . . . . . . . . Propulsion 4 | . . . . . 1 1 . . . 1 . . . . . . . . . . . . 1 . . . . . . Utility 27 | . 1 . . . 3 2 . 2 . . . 1 3 1 1 . . 2 . . 1 4 4 . . . . 2 . Weapon 23 | . 5 . 1 . 5 2 1 . 1 . . . 1 . 3 . . . . 2 . . . . 1 . . 1 . Tool/Special 3 | . . . . . . . . . . . . . . . . . . . . . . . . . . . . 1 2 Average Slot Usage (%) 87 | . 95 100 90 100 93 80 91 80 84 86 86 86 62 87 92 94 94 84 93 88 83 95 88 89 89 96 94 78 26 Engine 2 | . 10 14 14 14 . 4 6 6 . 6 6 6 3 . . . 3 5 3 . . . . . . . . . . Core 3 | . . . . . 10 1 . . 5 . . . 2 11 11 11 7 4 5 4 10 9 1 2 . . . . . Reactor 2 | . . . . . . . . . . . . . . . . . . . 1 2 . . 6 7 8 8 8 5 . Treads 3 | . 28 28 17 7 15 . . . . . . . . . . . . . . . . . . . . . . . . Wheel 1 | . . . 1 21 9 3 . . . . . . . . . . . . . . . . . . . . . . . Hover 21 | . . . . . . . . 14 20 20 20 20 12 23 26 29 29 29 29 33 36 33 35 36 38 41 35 27 7 Flight 1 | . . . . . . 14 33 6 . . . . 7 . . . . . . . . . . . . . . . . Device 9 | . 5 4 6 14 13 10 10 6 6 6 6 6 6 12 13 17 17 16 16 9 15 10 7 15 6 11 8 11 5 Storage 5 | . 14 14 14 14 13 3 . . . . . . 2 5 5 5 5 5 5 5 5 5 5 5 4 4 4 3 4 Processor 5 | . . . 6 . . 12 13 13 13 13 13 13 8 8 5 5 5 5 5 1 4 12 16 10 1 . . . . Hackware 4 | . . . . . . 4 6 7 7 6 6 6 3 . . . . . . 10 . . . . 12 9 15 13 8 Protection 1 | . 8 9 . . . . . . 3 5 6 6 . 1 2 . . . . 1 . 1 . . 1 1 4 2 . Energy Gun 3 | . 8 28 24 4 . 3 6 2 . . . . . . . . . . . . . . 2 . . 1 3 1 . Ballistic Gun 5 | . 19 . . 9 . 4 13 16 15 . . . . 18 23 23 19 12 23 1 . 2 . . 3 . . . . Ballistic Cannon 7 | . . . . 14 27 1 . 3 10 26 26 26 6 . . . . . . 13 9 12 5 9 6 11 4 2 . Peak Build Rating 193 | 9 12 14 14 15 30 70 79 80 73 82 80 80 91 87 103 103 103 105 108 127 119 118 155 155 168 177 193 180 58 Average Rating 89 | 6 9 12 12 13 20 49 71 71 66 77 80 79 56 84 95 102 101 92 104 109 109 104 126 149 158 164 177 140 43 On Entrance 80 | . 9 12 14 14 14 23 70 72 70 73 80 80 80 83 85 103 103 101 105 107 103 109 102 155 148 143 163 131 58 Naked Turns 96 | . . . . . . . . . . . . . 96 . . . . . . . . . . . . . . . . Heaviest Build 124 | 12 34 34 34 34 37 46 28 37 49 49 48 48 55 42 63 63 63 66 64 78 73 86 121 120 124 101 111 113 12 Greatest Support 138 | 40 40 40 40 32 43 76 30 49 49 49 49 49 60 50 63 63 63 64 64 90 74 76 91 91 132 138 138 124 30 Greatest Overweight (x) 11 | . . . 9 1 11 4 . 1 . . . . 1 . 1 . . 1 . 1 . 1 1 1 1 . . 1 . Average Overweight (x) . | . . . . . . . . . . . . . . . . . . . . . . . . 1 . . . . . Largest Inventory Capacity 15 | 8 15 15 15 15 15 15 5 5 5 5 5 5 10 10 15 15 15 15 15 15 15 15 15 15 15 15 15 15 8 Average Capacity 12 | 7 14 15 15 15 14 10 5 5 5 5 5 5 7 10 13 15 15 15 15 15 15 15 15 15 15 15 15 11 8 Most Carried 15 | 2 11 15 15 15 15 15 5 5 5 5 5 5 10 10 15 15 15 15 15 15 15 15 15 15 15 15 15 15 8 Average Carried 12 | . 7 12 14 13 14 8 3 4 4 4 5 4 6 9 12 14 14 14 14 14 14 14 14 14 14 14 14 10 7 Final Capacity 15 | 8 15 15 15 15 15 5 5 5 5 5 5 5 10 10 15 15 15 15 15 15 15 15 15 15 15 15 15 8 8 Final Carried 15 | 2 11 15 13 15 15 5 3 5 5 5 5 5 10 10 15 15 15 15 15 15 15 15 15 15 15 15 13 7 7 Class Distribution -------------------- 25% | Scavenger-Gunner 24% | Mutant 13% | Scavenger-Sprinter 5% | Scavenger-Tank 5% | Gunner 4% | Hacker-Tank 4% | Commander-Gunner 4% | Scavenger-Mutant 3% | Sprinter Dominant Class ---------------- Mutant | -10/Materials Mutant | -10/Mines Mutant | -10/Subcaves Mutant | -9/Recycling Mutant | -9/Scraptown Sprinter | -6/Factory Sprinter | -6/Waste Gunner | -6/Factory Gunner | -6/Extension Commander-Gunner | -6/Cetus Commander-Gunner | -6/Archives Gunner | -6/Hub_04(d) Scavenger-Sprinter | -5/Factory Scavenger-Gunner | -5/Waste Scavenger-Gunner | -5/Factory Scavenger-Gunner | -5/Upper Caves Scavenger-Gunner | -5/Upper Caves Scavenger-Gunner | -5/Zhirov Scavenger-Gunner | -4/Proximity Caves Scavenger-Sprinter | -4/Factory Scavenger-Sprinter | -4/Upper Caves Scavenger-Sprinter | -4/Upper Caves Scavenger-Sprinter | -4/Warlord Scavenger-Gunner | -3/Proximity Caves Scavenger-Gunner | -3/Research Scavenger-Tank | -3/Testing Hacker-Tank | -2/Research Hacker-Tank | -2/Quarantine Hacker-Mutant | -2/Protoforge Resources | -11 -10 -10 -10 -9 -9 -6 -6 -6 -6 -6 -6 -6 -5 -5 -5 -5 -5 -5 -4 -4 -4 -4 -4 -3 -3 -3 -2 -2 -2 ----------- Run | Yrd Mat Min Sub Rec Scr Fac Was Fac Ext Cet Arc Hub Fac Was Fac Upp Upp Zhi Pro Fac Upp Upp War Pro Res Tes Res Qua Frg Matter Collected 24538 | 490 297 24 369 277 351 1513 865 179 1347 310 25 12 795 289 620 116 91 250 547 2884 455 1486 2166 744 5106 1377 934 619 . Remotely 513 | . . . . . . . . . . . . . . . . . . . . . . . . 448 57 . . 8 . Salvage Created 17594 | 323 631 66 386 367 . 1400 1366 63 519 55 60 7 822 584 850 122 . . 344 2075 177 1762 1215 152 1834 861 1158 395 . Parts 699 | 24 41 4 30 8 . 59 12 4 28 3 3 3 44 5 33 3 . . 24 112 7 31 44 9 75 31 45 17 . Haulers Intercepted 10 | . 1 . . . . 1 . . . . . . 2 . 1 . . . . 2 . 1 . . 1 1 . . . Recyclers Shooed 20 | 1 1 . . 4 . 2 . . 2 . . . 1 . 1 . . . . 4 . . . . 3 1 . . . Parts Field Recycled . | . . . . . . . . . . . . . . . . . . . . . . . . . . . . . . Retrieved Matter . | . . . . . . . . . . . . . . . . . . . . . . . . . . . . . . Parts Self-Destructed 91 | . . . 13 . . . . . . . . . . . . 19 3 . 22 . 6 19 . 9 . . . . . Prevented 7 | . . . 2 . . . . . . . . . . . . 5 . . . . . . . . . . . . . Kills | -11 -10 -10 -10 -9 -9 -6 -6 -6 -6 -6 -6 -6 -5 -5 -5 -5 -5 -5 -4 -4 -4 -4 -4 -3 -3 -3 -2 -2 -2 ------- Run | Yrd Mat Min Sub Rec Scr Fac Was Fac Ext Cet Arc Hub Fac Was Fac Upp Upp Zhi Pro Fac Upp Upp War Pro Res Tes Res Qua Frg Combat Hostiles Destroyed 304 | . 15 . 9 . . 24 6 4 10 . 1 . 15 . 6 1 . . 12 34 3 32 33 7 38 18 28 8 . Melee 4 | . . . . . . . . . . . . . 1 . . . . . . 1 . . 1 . 1 . . . . Guns 80 | . 13 . 7 . . 7 3 . 3 . . . 1 . 6 1 . . 12 . . 1 12 . 8 . 6 . . Cannons 84 | . . . . . . 4 . . 3 . 1 . 2 . . . . . . 14 3 15 4 4 18 10 6 . . AOE 129 | . 1 . 1 . . 10 3 4 4 . . . 10 . . . . . . 19 . 16 16 3 11 8 15 8 . Classes Destroyed 30 | 3 3 . 2 . . 5 1 . 1 . . 1 1 . . . . . 1 1 . 3 3 . 2 2 1 . . Worker 30 | 2 1 . . . . 6 . . . . . . 9 . . . . . . 6 . . . . 1 3 1 1 . Builder 12 | . . . . . . 3 . . 1 . . . . . 1 . . . . 4 . . . . . 2 . 1 . Tunneler 12 | 9 . . . . . 1 . 1 . . . . . . . . . . . 1 . . . . . . . . . Hauler 10 | . 1 . . . . 1 . . . . . . 2 . 1 . . . . 2 . 1 . . 1 1 . . . Recycler 29 | 1 1 1 . 5 . 4 . . 1 . . . 2 . 2 . . . . 7 . . . . 1 1 2 1 . Minesweeper 2 | . . . . . . . . . . . . . . . . . . . 1 . 1 . . . . . . . . Mechanic 1 | . . . . . . . . . . . . . . . . . . . . . . . . . . 1 . . . Operator 3 | . . . . . . . . . . . . 1 . . . . . . . 1 . . . . . 1 . . . Drone 10 | . . . . . . . . . . . . . 1 . . . . . . . . . . 2 . . . 7 . Turret 2 | . . . 2 . . . . . . . . . . . . . . . . . . . . . . . . . . Watcher 8 | . . . . . . 1 . . . 2 . . 1 . 1 . . . . . . . . . 1 2 . . . Swarmer 98 | . 5 . 4 . . 7 . 4 5 . . . 11 . 1 1 . . 12 10 . 11 3 . 4 4 16 . . Cutter 2 | . . . . . . . . . . . . . . . . . . . . . . . . . . . 2 . . Saboteur 2 | . . . . . . . . . . . . . . . . . . . . . . . 2 . . . . . . Grunt 89 | . 10 . . . . 13 . . 2 . 1 . . . . . . . . 8 3 12 11 4 18 7 . . . Brawler 4 | . . . . . . . . . . . . . . . . . . . . . . 1 3 . . . . . . Duelist 1 | . . . . . . . . . . . . . . . . . . . . . . . 1 . . . . . . Protector 4 | . . . . . . . . . . . . . . . . . . . . . . . 4 . . . . . . Researcher 4 | . . . . . . . . . . . . . . . . . . . . . . . . . . 2 . 2 . Sentry 14 | . . . . . . 1 . . 2 . . . . . 3 . . . . 1 . 2 . . 2 . 3 . . Demolisher 2 | . . . . . . . . . . . . . . . . . . . . . . . . . 2 . . . . Specialist 2 | . . . . . . . . . . . . . . . . . . . . 1 . . 1 . . . . . . Hunter 23 | . . . . . . 1 . . . . . . 1 . 1 . . . . 5 . . 3 . 8 2 2 . . Programmer 31 | . . . . . . 2 . . . . . . 2 . 1 . . . . 9 . 1 2 1 2 5 5 1 . Behemoth 2 | . . . . . . . . . 1 . . . . . . . . . . . . . 1 . . . . . . Compactor 6 | . . . . . . . 6 . . . . . . . . . . . . . . . . . . . . . . Investigator 1 | . . . . . . . . . . . . . . . . . . . . . . . . . . 1 . . . Striker 2 | . . . . . . . . . . . . . . . . . . . . . . . . . 2 . . . . Executioner 1 | . . . . . . . . . . . . . . . . . . . . . . . 1 . . . . . . Subdweller 5 | . . . 5 . . . . . . . . . . . . . . . . . . . . . . . . . . Packrat 1 | . . . . . . . . . . . . . . . . 1 . . . . . . . . . . . . . Thug 2 | . . . . . . . . . . . . . . . . . . . . . . . 2 . . . . . . Savage 3 | . . . . . . . . . . . . . . . . . . . . . . 3 . . . . . . . Butcher 1 | . . . . . . . . . . . . . . . . . . . . . . 1 . . . . . . . Mutant 1 | . . . . . . . . . . . . . . . . . . . . . . 1 . . . . . . . Commander 1 | . . . . . . . . . . . . . . . . . . . . . . . 1 . . . . . . Best Kill Streak 13 | 4 4 1 4 2 . 10 2 4 6 1 1 1 6 . 2 1 . . 4 6 3 6 13 3 4 9 8 5 . Combat Bots Only 13 | . 4 . 4 . . 6 2 4 6 . 1 . 4 . 2 1 . . 4 5 3 6 13 3 4 7 8 4 . Max Kills in Single Turn 7 | 1 2 1 2 1 . 7 1 3 2 1 1 1 4 . 2 1 . . 2 5 1 4 5 1 2 7 4 4 . Gunslinging 1 | . . . 1 . . . . . . . . . . . . . . . 1 . . . 1 . . . . . . Exploded 5 | . 1 . 1 . . 2 1 3 2 . . . 3 . . . . . . 5 . 4 5 1 2 5 4 4 . Melee 1 | . . . . . . . . . . . . . 1 . . . . . . 1 . . 1 . 1 . . . . Uniques/NPCs Destroyed . | . . . . . . . . . . . . . . . . . . . . . . . . . . . . . . Combat | -11 -10 -10 -10 -9 -9 -6 -6 -6 -6 -6 -6 -6 -5 -5 -5 -5 -5 -5 -4 -4 -4 -4 -4 -3 -3 -3 -2 -2 -2 -------- Run | Yrd Mat Min Sub Rec Scr Fac Was Fac Ext Cet Arc Hub Fac Was Fac Upp Upp Zhi Pro Fac Upp Upp War Pro Res Tes Res Qua Frg Hostile Shots Fired 2816 | . 61 . 66 . . 290 1 71 106 4 . 9 181 . 30 16 . . 26 497 . 69 118 33 381 335 183 284 55 Missed 1182 | . 17 . 21 . . 96 1 33 45 2 . 6 77 . 6 7 . . 8 244 . 23 48 8 164 154 72 125 25 Hits 1634 | . 44 . 45 . . 194 . 38 61 2 . 3 104 . 24 9 . . 18 253 . 46 70 25 217 181 111 159 30 Melee 16 | . . . . . . 1 . . . . . . . . . . . . . . . . 3 . 10 . 2 . . Projectile 1618 | . 44 . 45 . . 193 . 38 61 2 . 3 104 . 24 9 . . 18 253 . 46 67 25 207 181 109 159 30 AOE 13 | . . . . . . . . . . . . . . . . . . . . 1 . . . . 9 . 3 . . Critical Strikes 94 | . . . 1 . . 6 . . . 1 . . 5 . 1 . . . . 23 . 8 8 1 14 11 8 7 . Actively Blocked 1 | . . . . . . . . . . . . . . . . . . . . . . . . . . . 1 . . Part Disruptions 4 | . . . . . . . . . . . . . . . . . . . . 1 . . . . . 1 1 1 . Damage Taken 32740 | . 576 . 584 . . 3311 . 550 497 169 . 29 2058 . 492 160 . . 265 5070 . 964 1725 283 5662 2601 3169 3804 771 Core 5133 | . 68 . 137 . . 679 . 85 33 29 . . 779 . 104 . . . 17 577 . 89 355 21 703 384 96 509 468 Absorbed by Shields 1064 | . . . . . . 80 . . 290 26 . . . . . . . . . . . . 277 271 14 . . 106 . Redirected to Shielding 449 | . . . . . . . . . . . . . . . 26 . . . . 158 . . . . . . 164 101 . Ignored by Resistances 900 | . . . . . . . . . . . . . . . . . . . . . . . . . 124 669 107 . . Regen/Repaired (Parts) 1936 | . . . . . . . . . . . . . 38 . . . . . . 270 . . 301 . 598 220 142 367 . Core Remaining (%) 25 | 100 . . . . 18 . . . . . . 2 . . . . . . 10 . . . . 9 . 16 . . . Volleys Fired 1001 | 36 50 2 36 29 . 58 57 11 47 10 1 1 33 8 27 6 4 . 14 118 10 56 76 21 122 81 58 27 2 Largest 4 | 2 2 2 2 2 . 4 4 4 4 4 4 4 4 4 4 4 3 . 4 4 2 4 2 2 4 4 4 3 1 Hottest 404 | 40 40 90 90 78 . 276 185 163 132 240 173 173 243 124 132 132 99 . 132 200 106 186 236 160 173 212 404 247 70 Shots Fired 2220 | 72 94 4 62 51 . 131 167 27 152 33 4 4 78 32 109 24 10 . 57 240 20 136 121 27 226 154 144 39 2 Gun 1057 | 72 89 4 33 23 . 86 159 19 106 1 . . 6 32 109 24 9 . 57 3 . 17 70 . 74 10 38 16 . Cannon 982 | . . . . 28 . 35 . 6 43 32 4 4 70 . . . . . . 222 20 108 28 22 120 135 88 17 . Launcher 154 | . 5 . 29 . . 10 8 2 3 . . . 2 . . . . . . 15 . 11 9 5 32 9 9 3 2 Special 27 | . . . . . . . . . . . . . . . . . 1 . . . . . 14 . . . 9 3 . Kinetic 1624 | 72 89 . . 47 . 51 105 24 149 32 4 4 47 32 109 24 9 . 57 225 20 125 28 22 194 116 32 7 . Thermal 286 | . . . . . . 61 54 1 . 1 . . 29 . . . 1 . . . . . . . . 29 87 23 . Explosive 120 | . . . . . . 10 8 2 3 . . . 2 . . . . . . 15 . 11 9 5 32 9 9 3 2 Electromagnetic 94 | . 5 4 62 4 . 9 . . . . . . . . . . . . . . . . . . . . 7 3 . Entropic 70 | . . . . . . . . . . . . . . . . . . . . . . . 70 . . . . . . Robot Hit Streak 25 | 8 16 3 19 5 . 11 9 2 7 1 . . 5 6 7 5 1 . 10 23 10 25 9 4 11 12 7 4 . Robot Miss Streak 9 | 4 3 1 3 3 . 6 3 9 5 7 4 . 6 2 5 1 2 . 5 3 2 3 6 3 3 5 3 2 . Penetration Max 2 | . . . . . . 1 . . 1 . . . . 1 1 . . . 1 1 . 1 1 . 2 . . . . Secondary Targets 17 | . 2 . 2 . . 1 . . . . . . . . 2 1 . . 3 . . . 4 . 2 . . . . Max Gunslinging Chain 1 | . 1 . 1 . . 1 . . . . . . . . 1 1 . . 1 . . . 1 . 1 . . . . Autonomous 32 | . . . . . . 32 . . . . . . . . . . . . . . . . . . . . . . . Shots Hit Robots 1243 | 39 64 4 33 34 . 83 105 5 81 8 . . 47 20 50 13 4 . 26 135 14 107 74 16 132 62 73 14 . Core Hits 761 | 18 27 2 23 7 . 68 24 6 43 5 2 1 45 6 24 5 1 . 15 87 6 58 90 11 84 52 39 12 . Critical Kills 14 | . 1 . . . . . . . . . 1 . 1 . 5 . . . 3 . . 1 . . . . 2 . . Critical Parts Destroyed 20 | . . . . . . 3 . . . 1 . . . . 6 . . . 3 . . 2 4 . 1 . . . . Critical Strikes 95 | . 1 . . 1 . 3 2 . 1 2 1 . 4 2 11 1 . . 6 17 1 13 7 3 9 6 4 . . Burn 2 | . . . . . . . 2 . . . . . . . . . . . . . . . . . . . . . . Meltdown 2 | . . . . . . . . . . . . . . . . . . . . . . . . . . . 2 . . Destroy 26 | . 1 . . . . . . . . 2 1 . . 2 11 1 . . 6 . . 1 . . 1 . . . . Blast 54 | . . . . 1 . . . . 1 . . . 3 . . . . . . 16 1 10 3 3 8 6 2 . . Smash 6 | . . . . . . 3 . . . . . . 1 . . . . . . . . 2 . . . . . . . Impale 1 | . . . . . . . . . . . . . . . . . . . . 1 . . . . . . . . . Detonate 4 | . . . . . . . . . . . . . . . . . . . . . . . 4 . . . . . . Melee Attacks 108 | . . . 15 . . 15 . . . . . . 22 . . . . . . 12 . 41 . . 3 . . . . Impact 78 | . . . . . . 15 . . . . . . 22 . . . . . . . . 41 . . . . . . . Slashing 15 | . . . 15 . . . . . . . . . . . . . . . . . . . . . . . . . . Piercing 15 | . . . . . . . . . . . . . . . . . . . . 12 . . . . 3 . . . . Sneak Attacks 15 | . . . . . . 3 . . . . . . 5 . . . . . . 7 . . . . . . . . . Combat Hostiles 1 | . . . . . . . . . . . . . . . . . . . . 1 . . . . . . . . . Follow-up Attacks 3 | . . . . . . 3 . . . . . . . . . . . . . . . . . . . . . . . Damage Inflicted 70934 | 418 831 57 629 543 . 4052 4391 543 2647 277 62 22 3608 520 1390 398 85 . 697 9121 532 6949 8091 1700 10138 5087 6345 1801 . Guns 14891 | 418 649 57 356 196 . 918 2633 70 1300 . . . 54 520 1390 398 85 . 697 60 . 318 2253 . 1564 41 812 102 . Cannons 23250 | . . . . 312 . 612 . 25 658 277 62 22 1482 . . . . . . 4607 532 2859 1050 1220 4211 2988 2092 241 . Explosions 29750 | . 182 . 273 35 . 1968 1758 418 689 . . . 1514 . . . . . . 3783 . 2615 4788 480 4333 2015 3441 1458 . Melee 2809 | . . . . . . 554 . . . . . . 489 . . . . . . 579 . 1157 . . 30 . . . . Ramming 234 | . . . . . . . . 30 . . . . 69 . . . . . . 92 . . . . . 43 . . . Kinetic 29949 | 418 649 . . 447 . 703 1751 95 1958 277 62 22 938 520 1390 398 85 . 697 4667 532 3177 1050 1220 5775 2316 717 85 . Thermal 8470 | . 34 . . 35 . 1550 882 . . . . . 1236 . . . . . . 433 . . 1302 . . 713 2027 258 . Explosive 25825 | . . . . . . 1072 1758 418 689 . . . 710 . . . . . . 3350 . 2615 3486 480 4333 2015 3441 1458 . Electromagnetic 1394 | . 148 57 629 61 . 173 . . . . . . 166 . . . . . . . . . . . . . 160 . . Impact 2200 | . . . . . . 554 . . . . . . 489 . . . . . . . . 1157 . . . . . . . Slashing . | . . . . . . . . . . . . . . . . . . . . . . . . . . . . . . Piercing 609 | . . . . . . . . . . . . . . . . . . . . 579 . . . . 30 . . . . Entropic 2253 | . . . . . . . . . . . . . . . . . . . . . . . 2253 . . . . . . Highest Corruption 39 | . 8 8 18 18 . 12 39 39 39 39 39 39 16 1 2 2 2 2 2 11 1 1 1 1 3 13 8 26 26 Average Corruption 10 | . 8 8 8 18 . 9 24 39 39 39 39 39 6 1 1 2 2 2 2 6 1 1 1 1 1 6 2 12 26 Corruption Purged 33 | . . . . . . . . . . . . . 18 . . . . . . 13 . . . . 2 . . . . Corruption Blocked . | . . . . . . . . . . . . . . . . . . . . . . . . . . . . . . Effects 496 | . 13 7 65 13 . 38 30 19 93 25 5 4 17 4 5 1 6 4 10 23 6 9 . 5 2 31 11 34 16 Message Errors 129 | . 5 1 20 3 . 8 3 7 29 7 2 . 2 1 2 . 3 2 3 5 1 2 . 1 1 7 3 6 5 Matter Fused 91 | . 3 3 15 3 . 11 3 3 12 4 . 1 7 2 . . 1 2 2 6 1 . . . . 4 . 7 1 Heat Flow Errors 45 | . 1 . 7 1 . 4 2 2 8 2 . . 1 1 1 1 1 . . 2 2 . . 1 . 4 2 2 . Energy Discharges 56 | . 1 1 9 2 . 8 3 2 9 1 . 1 4 . . . 1 . 1 1 . 2 . 2 . 3 . 4 1 Parts Rejected 7 | . 1 . . . . 2 1 1 1 . . . . . . . . . . . . . . . . . . . 1 Parts Fused 2 | . . . 1 . . . . . . . . . . . . . . . . . . . . . . . . 1 . Data Loss (minor) 56 | . 1 . 8 2 . 2 3 3 6 4 . . 3 . 1 . . . 3 3 1 3 . . 1 4 4 4 . Data Loss (major) 16 | . . 2 1 . . 1 . . 1 1 1 1 . . . . . . . 1 1 1 . 1 . 2 . 2 . Misfires 15 | . . . 3 . . 1 1 . 4 . . . . . 1 . . . 1 . . . . . . 1 1 2 . Alerts 11 | . 1 . 1 . . . 1 . 3 2 . . . . . . . . . 2 . . . . . . . . 1 Misdirections 40 | . . . . . . . 9 1 6 . 2 1 . . . . . . . 3 . . . . . 5 . 6 7 Weapon Failures 28 | . . . . 2 . 1 4 . 14 4 . . . . . . . . . . . 1 . . . 1 1 . . Overload Shots 11 | . . . . . . . . . . 1 . . . . . . . . . . . . . . . 9 1 . . Effects 1 | . . . . . . . . . . . . . . . . . . . . . . . . . . 1 . . . Heat Surge 1 | . . . . . . . . . . . . . . . . . . . . . . . . . . 1 . . . Overflow Damage 4133 | . 20 . 15 26 . 428 . 46 111 . . . 412 . . . . . . 525 56 673 210 247 490 228 483 163 . Projectiles 1422 | . . . . 26 . 1 . . 19 . . . 89 . . . . . . 162 56 88 185 179 284 216 107 10 . Explosions 1534 | . 20 . 15 . . 104 . 46 92 . . . 135 . . . . . . 168 . 114 25 68 206 12 376 153 . Melee 1177 | . . . . . . 323 . . . . . . 188 . . . . . . 195 . 471 . . . . . . . Knockbacks 137 | . . . . 1 . 7 . . 5 . 1 . 11 . . . . . . 39 4 11 3 7 16 24 8 . . Impact 6 | . . . . . . 3 . . . . . . 2 . . . . . . 1 . . . . . . . . . Kinetic 128 | . . . . 1 . 4 . . 4 . 1 . 9 . . . . . . 38 4 10 3 7 16 24 7 . . Secondary 3 | . . . . . . . . . 1 . . . . . . . . . . . . 1 . . . . 1 . . Self-Inflicted Damage 703 | . . . 19 . . 33 . 96 . . . . 242 . . . . . . 46 . 15 . . 16 21 215 . . Shots 12 | . . . 1 . . 1 . 2 . . . . 4 . . . . . . . . 1 . . 1 . 2 . . Rammed 26 | . . . . . . . . 4 . . . . 18 . . . . . . 2 . . . . . 2 . . . Targets Rammed 26 | . . . . . . . . 4 . . . . 18 . . . . . . 2 . . . . . 2 . . . Kicked . | . . . . . . . . . . . . . . . . . . . . . . . . . . . . . . Crushed . | . . . . . . . . . . . . . . . . . . . . . . . . . . . . . . Highest Temperature 674 | . 126 39 240 247 . 310 198 218 241 149 21 24 336 208 151 203 180 . 84 387 236 418 416 252 276 212 674 140 . Average Temperature 66 | . 17 20 107 99 . 83 57 105 99 39 14 17 91 40 37 49 47 . 42 94 61 43 60 92 48 69 167 44 . Received Heat Transfer 5371 | . 198 . 84 . . 913 . 117 130 9 . 12 216 . 72 12 . . . 1108 . 277 602 66 499 561 171 171 153 Effects 18 | . . . . 2 . 1 . . . . . . . . . . . . . 3 1 1 3 2 1 . 4 . . Shutdowns 4 | . . . . . . . . . . . . . . . . . . . . . . 1 1 . . . 2 . . Energy Bleed 8 | . . . . . . 1 . . . . . . . . . . . . . 3 . . . 2 1 . 1 . . Interference 4 | . . . . 2 . . . . . . . . . . . . . . . . 1 . 1 . . . . . . Damage (minor) 2 | . . . . . . . . . . . . . . . . . . . . . . . 1 . . . 1 . . Siege Activations . | . . . . . . . . . . . . . . . . . . . . . . . . . . . . . . Martial Activations . | . . . . . . . . . . . . . . . . . . . . . . . . . . . . . . Shielding Activations . | . . . . . . . . . . . . . . . . . . . . . . . . . . . . . . Robots Disrupted . | . . . . . . . . . . . . . . . . . . . . . . . . . . . . . . Combat Hostiles . | . . . . . . . . . . . . . . . . . . . . . . . . . . . . . . Robots Corrupted 14 | . 1 . 1 . . 6 . . . . . . 4 . . . . . . 1 . 1 . . . . . . . Combat Hostiles 5 | . 1 . 1 . . 2 . . . . . . 1 . . . . . . . . . . . . . . . . Parts Fried 28 | . 2 . 3 1 . 9 . . . . . . 7 . . . . . . 4 . 2 . . . . . . . Impact Corruptions 40 | . . . . . . 13 . . . . . . 9 . . . . . . 1 . 17 . . . . . . . Robots Melted 3 | . . . . . . 1 . . . . . . . . . . . . . . . . . . . . 2 . . Combat Hostiles 2 | . . . . . . 1 . . . . . . . . . . . . . . . . . . . . 1 . . Parts Melted 16 | . . . . . . 5 1 . 1 . . . 2 . . . . . . . . . . . . . 7 . . Heat Transferred 9114 | . 50 . . . . 2317 2200 . . . . . 1250 . . . . . . 250 . . 651 . . 398 1702 296 . Parts Sabotaged . | . . . . . . . . . . . . . . . . . . . . . . . . . . . . . . Parts Stolen . | . . . . . . . . . . . . . . . . . . . . . . . . . . . . . . Parts Stripped . | . . . . . . . . . . . . . . . . . . . . . . . . . . . . . . Power Chain Reactions 5 | . 1 . 1 1 . 1 . . . . . . 1 . . . . . . . . . . . . . . . . Alert | -11 -10 -10 -10 -9 -9 -6 -6 -6 -6 -6 -6 -6 -5 -5 -5 -5 -5 -5 -4 -4 -4 -4 -4 -3 -3 -3 -2 -2 -2 ------- Run | Yrd Mat Min Sub Rec Scr Fac Was Fac Ext Cet Arc Hub Fac Was Fac Upp Upp Zhi Pro Fac Upp Upp War Pro Res Tes Res Qua Frg Maximum Alert Level 5 | . 1 . . 1 . 3 1 2 3 2 2 1 3 1 3 . . . . 5 . . . . 5 5 5 4 3 Low Security (%) 27 | 100 91 100 . 91 . 57 76 31 . . 23 23 31 . 5 . . . . 19 . . . . 17 . . . . Level 1 11 | . 8 . . 8 . 13 23 62 17 . 42 76 1 100 5 . . . . 9 . . . . 10 . . . . Level 2 22 | . . . . . . 26 . 5 81 100 34 . 12 . 28 . . . . 13 . . . . 26 . . . 68 Level 3 13 | . . . . . . 1 . . 1 . . . 53 . 61 . . . . 10 . . . . 15 3 13 14 31 Level 4 15 | . . . . . . . . . . . . . . . . . . . . 10 . . . . 16 78 53 85 . Level 5 7 | . . . . . . . . . . . . . . . . . . . . 29 . . . . 14 17 9 . . High Security 2 | . . . . . . . . . . . . . . . . . . . . 8 . . . . . . 23 . . Max Security . | . . . . . . . . . . . . . . . . . . . . . . . . . . . . . . Peak Influence 2996 | 15 222 61 . 206 . 738 256 450 966 628 574 233 1071 370 960 . . . . 2996 . . . . 1980 1895 1977 1203 865 Initial 1107 | . . 61 . 206 . . 256 121 201 540 204 193 109 370 162 . . . . 123 . . . . . 1107 1059 1106 675 Average 715 | 2 114 12 . 172 . 259 188 228 512 567 324 217 642 300 685 . . . . 1223 . . . . 821 1432 1450 1128 714 Influence Increases 21565 | 60 499 5 480 44 . 1587 98 631 1377 370 421 50 1560 2 1202 204 33 . 405 4220 78 781 943 162 2814 1220 1272 762 285 Destroy 0b10 Robot/C 8040 | . 300 . 120 . . 540 . 140 780 160 180 . 280 . 520 140 20 . 260 900 60 560 720 120 1060 420 560 200 . Destroy 0b10 Robot/NC 615 | 60 15 5 . 25 . 80 . 5 20 10 15 5 75 . 40 . . . 5 110 5 5 20 10 20 55 15 15 . Destroy Leader 1154 | . 72 . . . . 104 . 30 84 . . . 56 . 144 30 10 . 30 174 10 30 . 20 194 66 100 . . Allied During Kill 1310 | . . . . . . 9 . 15 353 169 188 . . . 277 34 3 . 20 53 3 6 98 12 70 . . . . Trap Triggered on 0b10 20 | . . . . . . 20 . . . . . . . . . . . . . . . . . . . . . . . Successful Hack 619 | . 19 . . 5 . 100 . 16 18 . . 14 31 . 16 . . . . 70 . . . . 107 51 12 160 . Select Force Hacks 60 | . 60 . . . . . . . . . . . . . . . . . . . . . . . . . . . . Disable Machine 1245 | . . . . . . 285 . 30 15 15 30 15 165 . 45 . . . . 240 . . . . 105 120 75 75 30 Destroy Structure 2787 | . 3 . . 14 . 104 98 35 47 16 8 1 248 2 130 . . . . 558 . . . . 628 358 360 87 90 Partial Spotted 735 | . . . . . . 60 . . 30 . . 15 120 . 15 . . . . 330 . . . . 90 30 15 . 30 Lose Combat Pursuer 4980 | . 30 . 360 . . 285 . 360 30 . . . 585 . 15 . . . 90 1785 . 180 105 . 540 120 135 225 135 Influence Decreases 20715 | 60 342 162 50 344 130 853 658 393 823 826 376 382 724 829 482 567 354 268 208 1431 1285 941 1997 727 844 1307 1188 1527 637 Entered New Map 10669 | . . 96 . 224 130 . 478 53 211 426 306 362 114 689 70 353 112 268 . 74 1105 339 1619 565 . 863 824 861 527 Time Decay 7012 | 60 312 66 30 120 . 499 160 160 502 180 30 20 470 140 302 214 222 . 198 577 180 522 248 142 624 374 214 356 90 Search Patrol Dispatched 300 | . . . . . . . . . . . . . . . . . . . . 300 . . . . . . . . . Lost Part 1564 | . 30 . 20 . . 234 . 20 30 . . . 140 . 10 . . . 10 250 . 60 90 . 160 60 150 280 20 Lost Ally 1020 | . . . . . . 120 20 160 80 220 40 . . . 100 . 20 . . 80 . 20 40 20 60 10 . 30 . Purge Threat 150 | . . . . . . . . . . . . . . . . . . . . 150 . . . . . . . . . Squads Dispatched 124 | . 4 . . . . 16 . 8 5 . . . 16 . 12 . . . . 25 . . . . 12 11 8 6 1 Investigation 51 | . 4 . . . . 7 . 6 3 . . . 9 . 3 . . . . 10 . . . . 7 . 1 1 . Extermination 21 | . . . . . . 4 . . . . . . 3 . 1 . . . . 4 . . . . . 2 2 4 1 Reinforcement 23 | . . . . . . 2 . 1 1 . . . 3 . . . . . . 3 . . . . 5 6 1 1 . Assault 19 | . . . . . . 1 . . 1 . . . . . 2 . . . . 8 . . . . . 3 4 . . Garrison 10 | . . . . . . 2 . 1 . . . . 1 . 6 . . . . . . . . . . . . . . Intercept . | . . . . . . . . . . . . . . . . . . . . . . . . . . . . . . Searches Triggered 2 | . . . . . . . . . . . . . . . . . . . . 2 . . . . . . . . . Construction Impeded 4 | . . . . . . . . . 1 . . . 1 . . . . . . 2 . . . . . . . . . Haulers Reinforced 4 | . . . . . . . . . . . . . . . . . . . . . . . . . 2 2 . . . Active Scanning Responses . | . . . . . . . . . . . . . . . . . . . . . . . . . . . . . . Cargo Convoy Interrupts 1 | . . . . . . . . . . . . . . . . . . . . 1 . . . . . . . . . Stealth | -11 -10 -10 -10 -9 -9 -6 -6 -6 -6 -6 -6 -6 -5 -5 -5 -5 -5 -5 -4 -4 -4 -4 -4 -3 -3 -3 -2 -2 -2 --------- Run | Yrd Mat Min Sub Rec Scr Fac Was Fac Ext Cet Arc Hub Fac Was Fac Upp Upp Zhi Pro Fac Upp Upp War Pro Res Tes Res Qua Frg Distress Signals 39 | . 1 . . . . 1 . . 4 2 1 . 4 . . . . . . 9 . . . . 9 1 1 2 4 Communications Jammed . | . . . . . . . . . . . . . . . . . . . . . . . . . . . . . . Distress Signals . | . . . . . . . . . . . . . . . . . . . . . . . . . . . . . . Times Spotted 960 | . 17 . 23 . . 61 6 29 45 10 25 2 66 . 24 6 . . 18 192 3 41 84 8 101 48 55 69 27 Peak Tracking Total 27 | . 4 . 4 . . 11 5 11 7 5 16 2 13 . 4 4 . . 5 27 3 7 14 4 11 10 14 14 15 Tactical Retreats 127 | . 1 . 6 . . 7 . 7 2 . . . 17 . 1 . . . 3 32 . 6 5 . 18 3 7 7 5 Traps | -11 -10 -10 -10 -9 -9 -6 -6 -6 -6 -6 -6 -6 -5 -5 -5 -5 -5 -5 -4 -4 -4 -4 -4 -3 -3 -3 -2 -2 -2 ------- Run | Yrd Mat Min Sub Rec Scr Fac Was Fac Ext Cet Arc Hub Fac Was Fac Upp Upp Zhi Pro Fac Upp Upp War Pro Res Tes Res Qua Frg Traps Triggered 23 | . 1 . 5 . . 3 . . 6 . . . 4 . . . . . . . . . . . . 1 . 2 1 Indirectly 4 | . . . 4 . . . . . . . . . . . . . . . . . . . . . . . . . . Trap Hack Attempts . | . . . . . . . . . . . . . . . . . . . . . . . . . . . . . . Triggered . | . . . . . . . . . . . . . . . . . . . . . . . . . . . . . . Disarmed 10 | . . . . . . 6 . . . . . . . . . . . . . . . . . . . . . 4 . Reprogrammed . | . . . . . . . . . . . . . . . . . . . . . . . . . . . . . . Reused 5 | . . . 1 . . 2 2 . . . . . . . . . . . . . . . . . . . . . . Traps Extracted . | . . . . . . . . . . . . . . . . . . . . . . . . . . . . . . Installed 10 | . . . 1 . . 3 2 . . . . . . . . . . . 4 . . . . . . . . . . Triggered 2 | . . . . . . 2 . . . . . . . . . . . . . . . . . . . . . . . Most Traps Carried 6 | . . 4 4 3 6 6 2 . . . . . . . . . . . 1 1 . . . . . . . . . Machines | -11 -10 -10 -10 -9 -9 -6 -6 -6 -6 -6 -6 -6 -5 -5 -5 -5 -5 -5 -4 -4 -4 -4 -4 -3 -3 -3 -2 -2 -2 ---------- Run | Yrd Mat Min Sub Rec Scr Fac Was Fac Ext Cet Arc Hub Fac Was Fac Upp Upp Zhi Pro Fac Upp Upp War Pro Res Tes Res Qua Frg Machines Disabled 94 | . . . 2 . . 19 . 2 2 2 2 1 11 . 3 . 1 . . 16 . 2 1 2 7 9 5 5 2 Max in Single Turn 16 | . . . 2 . . 16 . 1 1 1 . 1 4 . 2 . 1 . . 4 . 1 1 2 1 1 1 1 1 Garrison Access 8 | . . . . . . 2 . . . . . . 2 . . . . . . 1 . . . . 2 1 . . . Machines Repaired . | . . . . . . . . . . . . . . . . . . . . . . . . . . . . . . Machines Dismantled 2 | . . . . . . . . . . . . . . . . . 1 . . . . . 1 . . . . . . Machines Sabotaged . | . . . . . . . . . . . . . . . . . . . . . . . . . . . . . . Overloaded Fab Kills . | . . . . . . . . . . . . . . . . . . . . . . . . . . . . . . Hacking | -11 -10 -10 -10 -9 -9 -6 -6 -6 -6 -6 -6 -6 -5 -5 -5 -5 -5 -5 -4 -4 -4 -4 -4 -3 -3 -3 -2 -2 -2 --------- Run | Yrd Mat Min Sub Rec Scr Fac Was Fac Ext Cet Arc Hub Fac Was Fac Upp Upp Zhi Pro Fac Upp Upp War Pro Res Tes Res Qua Frg Machines Accessed 170 | . 6 . . 3 2 19 . 7 7 . . 2 23 . 8 1 . 4 . 24 1 4 3 1 21 10 5 16 3 Terminals 79 | . 4 . . 2 . 10 . 2 7 . . 2 8 . 3 . . . . 8 . 1 . 1 6 5 4 14 2 Fabricators 13 | . . . . . . 2 . 2 . . . . 2 . 1 . . . . 4 . . . . 1 1 . . . Repair Stations 12 | . . . . . . . . . . . . . 2 . . . . . . 3 . . . . 4 1 . 1 1 Recycling Units 26 | . 2 . . 1 . 4 . 3 . . . . 6 . 2 . . . . 6 . . . . 2 . . . . Scanalyzers 15 | . . . . . . 1 . . . . . . 3 . 1 . . . . 1 . . . . 5 2 1 1 . Garrison Access 11 | . . . . . . 2 . . . . . . 2 . 1 . . . . 2 . . . . 3 1 . . . Total Hacks 452 | . 17 . . 8 6 51 . 18 16 . . 8 60 . 18 1 . 17 . 59 1 12 6 2 56 32 12 48 4 Successful 266 | . 8 . . 4 6 23 . 10 4 . . 5 34 . 11 1 . 17 . 41 1 12 6 2 28 21 5 27 . Failed 185 | . 9 . . 4 . 28 . 8 12 . . 3 26 . 7 . . . . 17 . . . . 28 11 7 21 4 Catastrophic 38 | . 1 . . . . 6 . 2 4 . . 1 9 . 1 . . . . 1 . . . . 3 2 2 3 3 Database Lockouts 1 | . . . . . . . . . . . . . . . . . . . . 1 . . . . . . . . . Manual 167 | . 17 . . 7 . 20 . 12 6 1 . 5 19 . 8 . . . . 23 . . . . 12 4 7 23 3 Terminals 226 | . 15 . . 7 . 31 . 8 16 . . 8 21 . 8 . . . . 23 . 5 . 2 15 12 11 41 3 Fabricators 32 | . . . . . . 5 . 4 . . . . 6 . 3 . . . . 8 . . . . 4 2 . . . Repair Stations 32 | . . . . . . . . . . . . . 4 . . . . . . 10 . . . . 10 2 . 5 1 Recycling Units 38 | . 2 . . 1 . 5 . 6 . . . . 10 . 2 . . . . 7 . . . . 5 . . . . Scanalyzers 66 | . . . . . . 7 . . . . . . 15 . 3 . . . . 8 . . . . 16 14 1 2 . Garrison Access 20 | . . . . . . 3 . . . . . . 4 . 2 . . . . 3 . . . . 6 2 . . . Terminal Hacks 93 | . 3 . . 1 6 4 . 2 3 . . 3 1 . 1 1 . 17 . 6 1 12 6 2 4 6 2 12 . Record 30 | . . . . . 6 . . . . . . . . . . . . 5 . . . 10 5 2 . . . 2 . Part Schematic 4 | . . . . . . . . . . . . . . . . . . 4 . . . . . . . . . . . Robot Analysis 11 | . 3 . . 1 . 1 . . . . . 1 . . . . . 4 . 1 . . . . . . . . . Prototype ID Bank 6 | . . . . . . . . . . . . . . . . . . 4 . . . . . . 1 . . 1 . Open Door 9 | . . . . . . . . . 3 . . . . . . 1 . . . . 1 2 1 . . 1 . . . Level Access Points 2 | . . . . . . 1 . . . . . . . . . . . . . . . . . . . 1 . . . Branch Access Points 4 | . . . . . . 1 . 1 . . . . . . . . . . . 1 . . . . . . 1 . . Emergency Access Points 1 | . . . . . . . . . . . . . 1 . . . . . . . . . . . . . . . . Machine Index 2 | . . . . . . . . . . . . . . . . . . . . . . . . . 1 . 1 . . Terminal Index 6 | . . . . . . . . 1 . . . 1 . . 1 . . . . 1 . . . . . 1 . 1 . Unreport Threat 1 | . . . . . . . . . . . . . . . . . . . . 1 . . . . . . . . . Locate Traps 1 | . . . . . . . . . . . . . . . . . . . . . . . . . . . . 1 . Disarm Traps 2 | . . . . . . 1 . . . . . . . . . . . . . . . . . . . . . 1 . Recall Investigation 3 | . . . . . . . . . . . . . . . . . . . . 2 . . . . . . . 1 . Recall Extermination 1 | . . . . . . . . . . . . . . . . . . . . . . . . . . . . 1 . Recall Reinforcements 4 | . . . . . . . . . . . . . . . . . . . . . . . . . 1 . . 3 . Zone Layout 3 | . . . . . . . . . . . . 1 . . . . . . . . . . . . 1 . . 1 . Protovariant Controls 3 | . . . . . . . . . . . . . . . . . . . . . . . . . . 3 . . . Fabricator Hacks 21 | . . . . . . 1 . 4 . . . . 5 . 3 . . . . 7 . . . . 1 . . . . Network Status 4 | . . . . . . . . . . . . . 2 . 1 . . . . 1 . . . . . . . . . Load Schematic 9 | . . . . . . 1 . 2 . . . . 2 . 1 . . . . 3 . . . . . . . . . Build 8 | . . . . . . . . 2 . . . . 1 . 1 . . . . 3 . . . . 1 . . . . Repair Station Hacks 22 | . . . . . . . . . . . . . 4 . . . . . . 6 . . . . 7 2 . 3 . Scan Component 11 | . . . . . . . . . . . . . 1 . . . . . . 3 . . . . 4 1 . 2 . Repair 9 | . . . . . . . . . . . . . 1 . . . . . . 3 . . . . 3 1 . 1 . Refit 2 | . . . . . . . . . . . . . 2 . . . . . . . . . . . . . . . . Recycling Unit Hacks 5 | . . . . 1 . 1 . . . . . . 2 . . . . . . 1 . . . . . . . . . Report Inventory 3 | . . . . . . 1 . . . . . . 1 . . . . . . 1 . . . . . . . . . Retrieve Components 2 | . . . . 1 . . . . . . . . 1 . . . . . . . . . . . . . . . . Scanalyzer 49 | . . . . . . 7 . . . . . . 12 . 3 . . . . 7 . . . . 9 10 . 1 . Insert Component 23 | . . . . . . 3 . . . . . . 5 . 1 . . . . 4 . . . . 4 5 . 1 . Analyze 26 | . . . . . . 4 . . . . . . 7 . 2 . . . . 3 . . . . 5 5 . . . Garrison Access Hacks 8 | . . . . . . 2 . . . . . . 2 . . . . . . 1 . . . . 2 1 . . . Seal Access 8 | . . . . . . 2 . . . . . . 2 . . . . . . 1 . . . . 2 1 . . . Unauthorized Hacks 68 | . 5 . . 2 . 8 . 4 1 . . 2 8 . 4 . . . . 13 . . . . 5 2 3 11 . Terminals 44 | . 3 . . 2 . 4 . 1 1 . . 2 3 . 2 . . . . 7 . . . . 3 2 3 11 . Assimilate 4 | . . . . . . 1 . . . . . . . . . . . . . . . . . . 1 1 . 1 . Botnet 40 | . 3 . . 2 . 3 . 1 1 . . 2 3 . 2 . . . . 7 . . . . 2 1 3 10 . Fabricators . | . . . . . . . . . . . . . . . . . . . . . . . . . . . . . . Repair Stations . | . . . . . . . . . . . . . . . . . . . . . . . . . . . . . . Recycling Units 23 | . 2 . . . . 4 . 3 . . . . 4 . 2 . . . . 6 . . . . 2 . . . . Tunnel 2 | . 2 . . . . . . . . . . . . . . . . . . . . . . . . . . . . Fedlink 11 | . . . . . . 3 . 1 . . . . 3 . . . . . . 4 . . . . . . . . . Scrapoids 4 | . . . . . . 1 . 2 . . . . 1 . . . . . . . . . . . . . . . . Scraphulk 6 | . . . . . . . . . . . . . . . 2 . . . . 2 . . . . 2 . . . . Scanalyzers . | . . . . . . . . . . . . . . . . . . . . . . . . . . . . . . Garrison Access 1 | . . . . . . . . . . . . . 1 . . . . . . . . . . . . . . . . Intercept 1 | . . . . . . . . . . . . . 1 . . . . . . . . . . . . . . . . Data Cores Recovered 1 | . . . . . . . . . . . . 1 . . . . . . . . . . . . . . . . . Used . | . . . . . . . . . . . . . . . . . . . . . . . . . . . . . . Hacking Detections 119 | . 4 . . 2 . 11 . 6 6 1 . 2 15 . 5 . . . . 17 . 1 . . 19 8 5 14 3 Full Trace Events 24 | . 2 . . . . 2 . 3 3 . . . 4 . 1 . . . . 4 . . . . 3 . 1 1 . Feedback Events . | . . . . . . . . . . . . . . . . . . . . . . . . . . . . . . Feedback Blocked 1 | . . . . . . . . . . . . . . . . . . . . . . . . . 1 . . . . Robot Schematics Acquired 2 | . . . . . . . . . . . . . . . . . . . . . . . . . . 1 . 1 . Robots Built . | . . . . . . . . . . . . . . . . . . . . . . . . . . . . . . Authchips . | . . . . . . . . . . . . . . . . . . . . . . . . . . . . . . Time . | . . . . . . . . . . . . . . . . . . . . . . . . . . . . . . Total Robot Build Rating . | . . . . . . . . . . . . . . . . . . . . . . . . . . . . . . Part Schematics Acquired 30 | . . . . . . 3 . . . . . . 4 . 1 . . 4 . 3 . . . . 4 6 . 5 . Parts Built 10 | . . . . . . . . 2 . . . . 2 . 2 . . . . 3 . . . . 1 . . . . Authchips . | . . . . . . . . . . . . . . . . . . . . . . . . . . . . . . Time 757 | . . . . . . . . 168 . . . . 36 . 106 . . . . 373 . . . . 74 . . . . Total Part Build Rating 56 | . . . . . . . . 8 . . . . 6 . 12 . . . . 21 . . . . 9 . . . . Parts Repaired 8 | . . . . . . . . . . . . . 1 . . . . . . 3 . . . . 2 1 . 1 . Time 474 | . . . . . . . . . . . . . 44 . . . . . . 179 . . . . 186 34 . 31 . Parts Recycled . | . . . . . . . . . . . . . . . . . . . . . . . . . . . . . . Recycled Matter . | . . . . . . . . . . . . . . . . . . . . . . . . . . . . . . Retrieved Matter . | . . . . . . . . . . . . . . . . . . . . . . . . . . . . . . Retrieved Components 5 | . . . . 2 . . . . . . . . 3 . . . . . . . . . . . . . . . . Parts Scanalyzed 21 | . . . . . . 3 . . . . . . 5 . 1 . . . . 3 . . . . 4 4 . 1 . Part Schematics Acquired 19 | . . . . . . 3 . . . . . . 4 . 1 . . . . 3 . . . . 4 4 . . . Parts Damaged 4 | . . . . . . 1 . . . . . . 1 . . . . . . . . . . . . 2 . . . Bothacking | -11 -10 -10 -10 -9 -9 -6 -6 -6 -6 -6 -6 -6 -5 -5 -5 -5 -5 -5 -4 -4 -4 -4 -4 -3 -3 -3 -2 -2 -2 ------------ Run | Yrd Mat Min Sub Rec Scr Fac Was Fac Ext Cet Arc Hub Fac Was Fac Upp Upp Zhi Pro Fac Upp Upp War Pro Res Tes Res Qua Frg Used RIF Installer . | . . . . . . . . . . . . . . . . . . . . . . . . . . . . . . Robots Hacked 2 | . . . . . . . . . . . . . . . . . . . . . . . . . . . . 2 . Non-combat . | . . . . . . . . . . . . . . . . . . . . . . . . . . . . . . Combat . | . . . . . . . . . . . . . . . . . . . . . . . . . . . . . . Robot Hacks Applied . | . . . . . . . . . . . . . . . . . . . . . . . . . . . . . . Manual 2 | . . . . . . . . . . . . . . . . . . . . . . . . . . . . 2 . Relay Couplers Released . | . . . . . . . . . . . . . . . . . . . . . . . . . . . . . . Fabnet Peak Effective % . | . . . . . . . . . . . . . . . . . . . . . . . . . . . . . . Robots Rewired 26 | . . . . . . 1 . . 18 . . . . . . . . . . . . 2 5 . . . . . . Allies Hacked 2 | . . . . . . . . . . . . . . . 2 . . . . . . . . . . . . . . Hacks Repelled . | . . . . . . . . . . . . . . . . . . . . . . . . . . . . . . Allies | -11 -10 -10 -10 -9 -9 -6 -6 -6 -6 -6 -6 -6 -5 -5 -5 -5 -5 -5 -4 -4 -4 -4 -4 -3 -3 -3 -2 -2 -2 -------- Run | Yrd Mat Min Sub Rec Scr Fac Was Fac Ext Cet Arc Hub Fac Was Fac Upp Upp Zhi Pro Fac Upp Upp War Pro Res Tes Res Qua Frg Total Allies 65 | . . . . . . 6 1 10 21 5 . . 5 . 2 . . . . 1 . 2 5 . 3 1 . 3 . Largest Group 18 | . . . . . . 5 1 5 16 18 10 . 5 5 5 2 2 1 1 1 . 2 5 2 1 1 . 2 . Highest-Rated Group 1015 | . . . . . . 146 31 140 633 1015 702 . 235 235 387 246 246 101 101 119 . 84 275 107 139 10 . 64 . Highest-Rated Ally 159 | . . . . . . 31 31 28 159 152 152 . 47 47 123 123 123 101 101 119 . 46 64 58 139 10 . 45 . Total Orders 75 | . . . . . . . . . 5 2 . . . 2 5 1 . 1 . 33 . 4 12 . 10 . . . . STAY 29 | . . . . . . . . . 3 1 . . . 1 2 . . 1 . 8 . 2 6 . 5 . . . . FOLLOW 26 | . . . . . . . . . 2 1 . . . 1 3 . . . . 7 . 1 6 . 5 . . . . AID 1 | . . . . . . . . . . . . . . . . 1 . . . . . . . . . . . . . RETURN 19 | . . . . . . . . . . . . . . . . . . . . 18 . 1 . . . . . . . Ally Attacks 654 | . . . . . . 20 4 34 127 85 52 . . . 67 17 1 . 4 97 11 19 36 10 70 . . . . Total Damage 17692 | . . . . . . 380 83 540 2954 1825 1425 . . . 1792 458 38 . 54 2202 155 455 1110 361 3860 . . . . Kills 129 | . . . . . . 3 . 4 33 8 12 . . . 23 6 1 . 1 12 . 1 9 1 15 . . . . Allies Corrupted 2 | . . . . . . . . . . . . . . . . . . . . 1 . 1 . . . . . . . Allies Melted 3 | . . . . . . . . . . . . . . . . . 1 . . 1 . . 1 . . . . . . Intel | -11 -10 -10 -10 -9 -9 -6 -6 -6 -6 -6 -6 -6 -5 -5 -5 -5 -5 -5 -4 -4 -4 -4 -4 -3 -3 -3 -2 -2 -2 ------- Run | Yrd Mat Min Sub Rec Scr Fac Was Fac Ext Cet Arc Hub Fac Was Fac Upp Upp Zhi Pro Fac Upp Upp War Pro Res Tes Res Qua Frg Active Infowar (turns) 4493 | 37 334 116 673 30 1049 445 . . . . . . 128 . . . . . 125 456 315 781 2 . 2 . . . . Optics 2 | . . . . . . . . . . . . . . . . . . . . . . . . . 2 . . . . Sensors 2 | . . . . . . . . . . . . . . . . . . . . . . . 2 . . . . . . IFF 1094 | . . . . . . . . . . . . . . . . . . . . . 313 781 . . . . . . . Terrain 2684 | 37 334 116 673 30 1049 445 . . . . . . . . . . . . . . . . . . . . . . . Traps 581 | . . . . . . . . . . . . . . . . . . . 125 456 . . . . . . . . . T.N.C. 62 | . . . . . . . . . . . . . 62 . . . . . . . . . . . . . . . . Jamming 68 | . . . . . . . . . . . . . 66 . . . . . . . 2 . . . . . . . . Robot Analysis Total 11 | . 3 . . 1 . 1 . . . . . 1 . . . . . 4 . 1 . . . . . . . . . Derelict Logs Recovered 12 | . . 2 1 . 3 . . . . . . . . . . 2 1 . 1 . 1 1 . . . . . . . Drone Launches 21 | . . . . . . . . . . . . . . . . . . . . 21 . . . . . . . . . Drone Recoveries 15 | . . . . . . . . . . . . . . . . . . . . 15 . . . . . . . . . Exploration | -11 -10 -10 -10 -9 -9 -6 -6 -6 -6 -6 -6 -6 -5 -5 -5 -5 -5 -5 -4 -4 -4 -4 -4 -3 -3 -3 -2 -2 -2 ------------- Run | Yrd Mat Min Sub Rec Scr Fac Was Fac Ext Cet Arc Hub Fac Was Fac Upp Upp Zhi Pro Fac Upp Upp War Pro Res Tes Res Qua Frg Turns Passed 24441 | 262 839 343 1812 247 1874 1443 335 335 1346 362 76 59 1194 295 676 449 475 132 605 1930 365 1454 1188 1036 2835 877 589 818 190 Spaces Moved 30990 | 95 418 207 798 152 1050 2328 477 478 1343 268 86 102 2176 281 911 718 567 204 1024 3582 1123 2155 1516 884 4761 1150 695 1179 262 Core 304 | 2 . . 1 . 21 . . . . . . . 280 . . . . . . . . . . . . . . . . Treads 2095 | 93 418 207 758 . 619 . . . . . . . . . . . . . . . . . . . . . . . . Legs 326 | . . . . . . 326 . . . . . . . . . . . . . . . . . . . . . . . Wheels 674 | . . . 39 152 410 73 . . . . . . . . . . . . . . . . . . . . . . . Hover 24113 | . . . . . . . . 407 1343 268 86 102 895 281 911 718 567 204 1024 3582 1123 2155 1516 884 4761 1150 695 1179 262 Flight 3478 | . . . . . . 1929 477 71 . . . . 1001 . . . . . . . . . . . . . . . . Fastest Speed 17 | 50 160 160 120 100 80 27 27 27 52 52 52 52 23 48 44 44 44 42 40 17 27 26 23 109 27 43 50 40 67 Average Speed 54 | 157 160 160 197 106 148 44 27 50 52 52 52 52 38 48 53 44 44 43 41 29 27 44 36 109 42 46 51 54 67 Slowest Speed 600 | 160 160 160 500 120 600 260 27 112 52 52 52 52 156 48 100 44 44 96 42 96 27 104 114 109 110 54 65 147 80 Overloaded Moves 149 | . . . . . . . . . . . . . . . . . . . . 149 . . . . . . . . . Propulsion Burnouts . | . . . . . . . . . . . . . . . . . . . . . . . . . . . . . . Robots Hopped 17 | . . . . . . 16 . . . . . . 1 . . . . . . . . . . . . . . . . Potential Cave-ins 6 | . . . . . . . . . . . . . . . . . . . . . . . . . 2 . . 4 . Cave-ins Triggered . | . . . . . . . . . . . . . . . . . . . . . . . . . . . . . . Teleports 5 | . . . . . . . . . . . . . . . . . . . . . . . . . . . . 4 1 Exploration Rate (%) 59 | 7 42 54 37 37 74 49 99 11 86 77 77 9 43 96 12 63 63 60 67 62 97 98 87 95 81 81 24 98 12 Regions Visited 29 Branch Regions 19 Pre-discovered Areas 9 | . 2 1 1 . 1 1 . . . . . . . . . . . 3 . . . . . . . . . . . Known Exits Taken 8 | . . . . . . . . 1 . . . 1 . . 1 . . . . 1 . . 1 1 . 1 1 . . Unknown Exits Taken 17 | 1 1 1 1 1 1 . . . 1 1 1 . . . . 1 1 1 1 . 1 1 . . 1 . . 1 . Scrap Searched 28 | . . 1 6 . 5 . . . . . . . . . . 2 1 . 3 . 5 3 . 2 . . . . . Spaces Dug 131 | . . . . . . . . 1 . . . . 10 . 3 3 . . . 13 . 25 . 24 5 15 3 3 26 Terrain Destroyed 2384 | . 2 . 7 13 . 120 176 55 101 7 1 2 126 3 41 3 1 . 26 280 8 300 188 118 349 229 153 33 42 Melee 38 | . . . . . . . . . . . . . 10 . . . . . . 3 . 24 . . 1 . . . . Projectile 521 | . . . . 10 . . 3 4 21 7 1 2 21 3 12 3 1 . 26 102 8 43 90 6 45 68 38 7 . AOE 1824 | . 2 . 7 3 . 120 173 51 80 . . . 95 . 28 . . . . 175 . 233 98 112 303 161 115 26 42 Terrain Rammed . | . . . . . . . . . . . . . . . . . . . . . . . . . . . . . . Walls Destroyed . | . . . . . . . . . . . . . . . . . . . . . . . . . . . . . . Machines Disabled . | . . . . . . . . . . . . . . . . . . . . . . . . . . . . . . Actions | -11 -10 -10 -10 -9 -9 -6 -6 -6 -6 -6 -6 -6 -5 -5 -5 -5 -5 -5 -4 -4 -4 -4 -4 -3 -3 -3 -2 -2 -2 --------- Run | Yrd Mat Min Sub Rec Scr Fac Was Fac Ext Cet Arc Hub Fac Was Fac Upp Upp Zhi Pro Fac Upp Upp War Pro Res Tes Res Qua Frg Total 36652 | 139 504 215 939 187 1368 2608 566 556 1891 468 114 105 2445 432 1055 841 777 247 1176 4241 1165 2494 2038 935 5369 1362 818 1324 273 Wait 2572 | . 4 . 53 . 245 42 8 27 346 177 28 1 61 122 76 111 190 . 122 313 13 126 184 18 221 49 11 24 . Move 30929 | 94 417 206 797 151 1049 2297 476 477 1342 267 85 101 2174 280 910 717 566 203 1023 3581 1122 2154 1515 883 4759 1149 694 1178 262 Hop 16 | . . . . . . 15 . . . . . . 1 . . . . . . . . . . . . . . . . Pick Up 344 | 2 16 5 7 2 29 27 3 8 6 4 . 1 30 6 9 2 2 9 4 42 5 17 21 2 40 14 9 21 1 Fast Attach 259 | 7 2 . 2 1 8 46 1 6 6 . . . 21 3 3 . 1 6 2 25 1 5 33 2 36 10 7 25 . Attach 222 | . 2 . 6 . 4 22 7 5 4 2 . . 25 1 1 . . 5 . 36 3 18 12 2 30 4 12 18 3 Detach 154 | . . . 3 1 4 16 7 5 2 1 . . 14 2 1 . . 4 . 25 3 10 13 1 24 2 3 11 2 Swap 351 | . 6 1 13 2 4 11 1 2 8 3 . . 15 2 15 2 6 7 2 39 4 26 61 2 67 29 17 6 . Drop 430 | . 7 1 6 1 25 46 4 11 9 4 . 1 31 8 11 3 2 13 5 47 4 16 63 4 66 22 7 13 . Fire 1001 | 36 50 2 36 29 . 58 57 11 47 10 1 1 33 8 27 6 4 . 14 118 10 56 76 21 122 81 58 27 2 Melee 104 | . . . 15 . . 11 . . . . . . 22 . . . . . . 12 . 41 . . 3 . . . . Ram 27 | . . . . . . . . 4 . . . . 18 . . . . . . 2 . . . . . 2 . 1 . Kick . | . . . . . . . . . . . . . . . . . . . . . . . . . . . . . . Crush . | . . . . . . . . . . . . . . . . . . . . . . . . . . . . . . Escape Stasis 27 | . . . . . . . . . 23 . . . . . . . . . . . . . . . 1 . . . 3 Rewire 191 | . . . . . . 14 . . 98 . . . . . 2 . . . . . . 25 52 . . . . . . Trap 10 | . . . 1 . . 3 2 . . . . . . . . . . . 4 . . . . . . . . . . Miscellaneous 15 | . . . . . . . . . . . . . . . . . 6 . . 1 . . 8 . . . . . . Route ------- -11/Scrapyard -10/Materials (discovered 2 exits: [*Mat] / [*Min]) -10/Mines (discovered 2 exits: [*Mat] / [*Sub]) -10/Subcaves (discovered 3 exits: [*Mat x2] / *Rec) -9/Recycling -9/Scraptown (discovered 2 exits: *Fac x2) -6/Factory (discovered 8 exits: *Fac x4 / *Low x2 / *Ext x2) -6/Waste -6/Factory (discovered 4 exits: Low x2 / *Ext x2) -6/Extension (discovered 2 exits: *Fac / *Cet) -6/Cetus (discovered 2 exits: *Fac / *Arc) -6/Archives (discovered 2 exits: *Fac / *Hub) -6/Hub_04(d) -5/Factory (discovered 2 exits: *Upp x2) -5/Waste -5/Factory -5/Upper Caves -5/Upper Caves (discovered 2 exits: *Fac / *Zhi) -5/Zhirov -4/Proximity Caves -4/Factory (discovered 3 exits: Res / *Upp x2) -4/Upper Caves -4/Upper Caves (discovered 2 exits: *Res / *War) -4/Warlord -3/Proximity Caves -3/Research (discovered 4 exits: *Res x2 / *Arm / *Tes) -3/Testing -2/Research (discovered 2 exits: *Qua x2) -2/Quarantine (discovered 3 exits: [*Acc] / [*Sec] / *Frg) -2/Protoforge History --------- Turn | Location | Event 103 | -11/Scrapyard | Discovered new exit (range 15) 263 | -11/Scrapyard | Entered Materials 302 | -10/Materials | Build established: Mutant 544 | -10/Materials | Discovered new exit (range 16) 722 | -10/Materials | Discovered new exit (range 10) 1102 | -10/Materials | Entered Mines 1110 | -10/Mines | Discovered new exit (range 10) 1232 | -10/Mines | Learned Materials terminal intel 1260 | -10/Mines | Learned location of Zion (-6) 1314 | -10/Mines | Found a hidden stash of uninstalled traps 1403 | -10/Mines | Discovered new exit (range 15) 1445 | -10/Mines | Entered Subcaves 1466 | -10/Subcaves | Discovered new exit (range 8) 1533 | -10/Subcaves | Met a Zionite searching for "candidates" 1745 | -10/Subcaves | Ambushed by angry Subdweller bent on revenge 1832 | -10/Subcaves | Discovered new exit (range 16) 1872 | -10/Subcaves | Shifting Twisted Machinery released Sub. Monowheel 1988 | -10/Subcaves | Core integrity fell below 50% 2089 | -10/Subcaves | Learned Materials garrison access intel 2100 | -10/Subcaves | Disturbed a concealed Subdweller 2351 | -10/Subcaves | Shifting Twisted Machinery released Sub. Optics 3067 | -10/Subcaves | Core integrity fell below 20% 3073 | -10/Subcaves | Discovered new exit (range 15) 3253 | -10/Subcaves | System corruption reached 10% 3257 | -10/Subcaves | Entered Recycling 3479 | -9/Recycling | Scanned before Scraplab entrance 3494 | -9/Recycling | Entered Scraplab 3503 | -9/Recycling | Discovered new exit (range 2) 3504 | -9/Recycling | Entered Scraptown 3504 | -9/Scraptown | System corruption cleaned by C-Scrubber 3638 | -9/Scraptown | Visited UFD Registry 3638 | -9/Scraptown | Registered with UFD as "Chaingrid" 3694 | -9/Scraptown | Scanned Subdweller tech in exchange for log data 3699 | -9/Scraptown | Learned location of Testing (-3) 3700 | -9/Scraptown | Learned Research security intel 3723 | -9/Scraptown | Discovered new exit (range 13) 4214 | -9/Scraptown | Visited Junk Repository 4290 | -9/Scraptown | Visited Abandonware Association 4306 | -9/Scraptown | Learned abandonware demo "HACKBUD.EXE" 4343 | -9/Scraptown | Visited Science Guys 4419 | -9/Scraptown | Delivered Scrap Shield to a Scientist 4546 | -9/Scraptown | Visited A0-MCA Data Center 4559 | -9/Scraptown | Given a B+ rating by A0-MCA 4566 | -9/Scraptown | Found A0-MCA's Component Scanner 4599 | -9/Scraptown | Visited Scrap Suit Storage 4627 | -9/Scraptown | Found Unknown Device 4627 | -9/Scraptown | Identified Scrap Suit 4697 | -9/Scraptown | Visited Observation Area 4713 | -9/Scraptown | Visited Cartography Club 4737 | -9/Scraptown | Visited Junk Repository 4850 | -9/Scraptown | Visited Modified Component R&D 5319 | -9/Scraptown | Met Optimus 5319 | -9/Scraptown | Accepted into 0bPrime 5373 | -9/Scraptown | Discovered new exit (range 3) 5378 | -9/Scraptown | Entered Factory 5378 | -6/Factory | Evolved 8 slots: Propulsion x3, Utility x3, Weapon x2 5379 | -6/Factory | Identified exit to Extension 5399 | -6/Factory | Loaded intel: 8 recycling unit locations 5609 | -6/Factory | Learned location of Protoforge (-2) 5676 | -6/Factory | Discovered new exit (range 15) 5680 | -6/Factory | Garrison activated, responded to threat 5807 | -6/Factory | Lost 10 parts (1p5n4w) 6018 | -6/Factory | Scrapoids reinforcements arrived? 6053 | -6/Factory | Core integrity fell below 50% 6070 | -6/Factory | Lost 5 allies 6136 | -6/Factory | Lost 10 parts (1p7n1u1w) 6452 | -6/Factory | System corruption reached 10% 6508 | -6/Factory | Identified exit to Lower Caves 6564 | -6/Factory | Discovered new exit (range 13) 6670 | -6/Factory | Build established: Sprinter 6738 | -6/Factory | Discovered new exit (range 11) 6742 | -6/Factory | Identified exit to Factory 6778 | -6/Factory | First assault squad dispatched 6821 | -6/Factory | Sucked down chute 6821 | -6/Factory | Entered Waste 6822 | -6/Waste | Met a frightened Derelict 6833 | -6/Waste | Spotted C-40 Crusher 6836 | -6/Waste | EMP discharged 6842 | -6/Waste | Spotted C-40 Crusher 6843 | -6/Waste | Spotted C-40 Crusher 6843 | -6/Waste | Spotted C-40 Crusher 6871 | -6/Waste | Destroyed C-40 Crusher 6900 | -6/Waste | Spotted C-40 Crusher 6919 | -6/Waste | Spotted C-40 Crusher 6925 | -6/Waste | Found Fusion Bomb Launcher 6936 | -6/Waste | EMP discharged 6937 | -6/Waste | Discovered new exit (range 13) 6944 | -6/Waste | Destroyed C-40 Crusher 6985 | -6/Waste | Destroyed C-40 Crusher 7036 | -6/Waste | EMP discharged 7036 | -6/Waste | System corruption reached 30% 7060 | -6/Waste | Destroyed C-40 Crusher 7065 | -6/Waste | Destroyed C-40 Crusher 7111 | -6/Waste | Destroyed C-40 Crusher 7136 | -6/Waste | EMP discharged 7156 | -6/Waste | Entered Factory 7257 | -6/Factory | Fabricated Gravmag System? 7263 | -6/Factory | Core integrity fell below 20% 7419 | -6/Factory | Loaded intel: 8 recycling unit locations 7454 | -6/Factory | Scrapoids reinforcements arrived? 7456 | -6/Factory | Garrison activated, responded to threat 7471 | -6/Factory | Scrapoids reinforcements arrived? 7491 | -6/Factory | Entered Extension 7517 | -6/Extension | Lost 9 allies 7518 | -6/Extension | Rescued A7 7841 | -6/Extension | First assault squad dispatched 7980 | -6/Extension | Spotted B-75 Beast 7997 | -6/Extension | Allies destroyed B-75 Beast 8044 | -6/Extension | Build established: Gunner 8099 | -6/Extension | Spotted B-75 Beast 8119 | -6/Extension | Destroyed B-75 Beast 8555 | -6/Extension | Rescued a captive Derelict 8665 | -6/Extension | Build established: Commander-Gunner 8720 | -6/Extension | Rescued a captive Derelict 8773 | -6/Extension | Discovered exit to Factory (range 10) 8774 | -6/Extension | Discovered new exit (range 6) 8826 | -6/Extension | Disrupted transfer network 8837 | -6/Extension | Entered Cetus 8837 | -6/Cetus | Accompanied by 16 allies (A7) 8842 | -6/Cetus | Acquired a Cetus Manufacturing Module code from A7 8859 | -6/Cetus | Spotted Cetus Guard 8861 | -6/Cetus | Allies destroyed Cetus Guard 8862 | -6/Cetus | Spotted Cetus Guard 8864 | -6/Cetus | Spotted Cetus Guard 8865 | -6/Cetus | Spotted Cetus Guard 8869 | -6/Cetus | Allies destroyed Cetus Guard 8874 | -6/Cetus | Allies destroyed Cetus Guard 8884 | -6/Cetus | Allies destroyed Cetus Guard 8900 | -6/Cetus | Lost 3 allies 8942 | -6/Cetus | Started Cetus Manufacturing Module 8954 | -6/Cetus | Escorted A7 to Cetus Mainframe 8967 | -6/Cetus | Manufactured an Enhanced Grunt 8992 | -6/Cetus | Manufactured an Enhanced Grunt 9012 | -6/Cetus | Discovered new exit (range 15) 9017 | -6/Cetus | Manufactured an Enhanced Grunt 9042 | -6/Cetus | Manufactured an Enhanced Grunt 9067 | -6/Cetus | Manufactured an Enhanced Grunt 9111 | -6/Cetus | Spotted Cetus Guard 9111 | -6/Cetus | Spotted Cetus Guard 9112 | -6/Cetus | Spotted Cetus Guard 9112 | -6/Cetus | Spotted Cetus Guard 9114 | -6/Cetus | Allies destroyed Cetus Guard 9122 | -6/Cetus | Allies destroyed Cetus Guard 9134 | -6/Cetus | Allies destroyed Cetus Guard 9135 | -6/Cetus | Allies destroyed Cetus Guard 9140 | -6/Cetus | Discovered exit to Factory (range 15) 9145 | -6/Cetus | Met Revision 17 9162 | -6/Cetus | Lost 8 allies 9199 | -6/Cetus | Entered Archives 9199 | -6/Archives | Accompanied by 10 allies (A7) 9204 | -6/Archives | Received a hacking code to weaken MAIN.C 9207 | -6/Archives | Met Zhirov 9211 | -6/Archives | Unable to access archive contents 9213 | -6/Archives | Reinforcements dispatched to Archives 9228 | -6/Archives | Discovered new exit (range 15) 9255 | -6/Archives | Discovered exit to Factory (range 16) 9258 | -6/Archives | Reinforcements dispatched to Archives 9260 | -6/Archives | Zhirov warped through subspace 9275 | -6/Archives | Entered Hub_04(d) 9282 | -6/Hub_04(d) | Discovered exit to Factory (range 9) 9293 | -6/Hub_04(d) | Lost 3 allies 9334 | -6/Hub_04(d) | Entered Factory 9334 | -5/Factory | Evolved 2 slots: Power x1, Propulsion x1 9438 | -5/Factory | Loaded intel: 8 recycling unit locations 9483 | -5/Factory | Fabricated Recoil Stabilizer (x2) 9575 | -5/Factory | Build established: Gunner 9579 | -5/Factory | Discovered new exit (range 16) 9740 | -5/Factory | Garrison activated, responded to threat 9747 | -5/Factory | Repaired Gravmag System? 9843 | -5/Factory | Released all parts (7) 9870 | -5/Factory | Lost 5 parts (1p3n1u) 9916 | -5/Factory | Core integrity fell below 50% 9973 | -5/Factory | Discovered new exit (range 10) 10031 | -5/Factory | Spotted B-75 Beast 10083 | -5/Factory | Lost 4 parts (1p1n2u) 10177 | -5/Factory | System corruption reached 10% 10355 | -5/Factory | Identified exit to Upper Caves 10413 | -5/Factory | Build established: Scavenger-Sprinter 10489 | -5/Factory | Scrapoids reinforcements arrived? 10528 | -5/Factory | Sucked down chute 10528 | -5/Factory | Entered Waste 10528 | -5/Waste | The area was eerily silent 10638 | -5/Waste | 5 allies followed down the chute 10685 | -5/Waste | Found Broken Fusion Bomb Launcher 10788 | -5/Waste | Discovered new exit (range 12) 10823 | -5/Waste | Entered Factory 10823 | -5/Factory | Accompanied by 5 allies 10893 | -5/Factory | Core integrity fell below 20% 10928 | -5/Factory | Discovered exit to Upper Caves (range 16) 10948 | -5/Factory | Fabricated KE Penetrator (x2) 11010 | -5/Factory | Scraphulk reinforcements arrived? 11037 | -5/Factory | Build established: Scavenger-Gunner 11181 | -5/Factory | Scraphulk reinforcements arrived? 11233 | -5/Factory | Garrison activated, responded to threat 11423 | -5/Factory | First assault squad dispatched 11499 | -5/Factory | Entered Upper Caves 11499 | -5/Upper Caves | Accompanied by 2 allies 11501 | -5/Upper Caves | UFD Scientist delivered a prototype 11518 | -5/Upper Caves | Found Prototype Protection 11527 | -5/Upper Caves | Learned Factory trap positions 11677 | -5/Upper Caves | Spotted B-75 Beast 11744 | -5/Upper Caves | Allies destroyed B-75 Beast 11777 | -5/Upper Caves | Learned location of 1 exit from Factory 11921 | -5/Upper Caves | Discovered new exit (range 9) 11948 | -5/Upper Caves | Entered another Upper Caves area 11948 | -5/Upper Caves | Accompanied by 2 allies 11948 | -5/Upper Caves | Discovered new exit (range 9) 11966 | -5/Upper Caves | Spotted B-75 Beast 12204 | -5/Upper Caves | Found Alien Artifact 12204 | -5/Upper Caves | Identified Dimensional Node Initializer 12204 | -5/Upper Caves | Initialized slip node 12295 | -5/Upper Caves | Discovered new exit (range 4) 12300 | -5/Upper Caves | Learned Factory trap positions 12331 | -5/Upper Caves | Encountered a Warlord checkpoint 12423 | -5/Upper Caves | Entered Zhirov 12423 | -5/Zhirov | Accompanied by 1 ally 12423 | -5/Zhirov | Discovered new exit (range 3) 12444 | -5/Zhirov | Learned location of Quarantine (-2) 12444 | -5/Zhirov | Learned location of Command (-1) 12453 | -5/Zhirov | Found Alien Artifact 12453 | -5/Zhirov | Identified Integrated Reactor 12453 | -5/Zhirov | Installed Integrated Reactor, increased core energy generation (+10) 12505 | -5/Zhirov | Found Alien Artifact 12537 | -5/Zhirov | Identified Enh. Scrap Shield 12555 | -5/Zhirov | Entered Proximity Caves 12555 | -4/Proximity Caves | Accompanied by 1 ally 12699 | -4/Proximity Caves | Spotted B-86 Titan 12781 | -4/Proximity Caves | Learned Research trap positions 12998 | -4/Proximity Caves | Discovered new exit (range 5) 13094 | -4/Proximity Caves | Attracted the attention of an 0b10 checkpoint 13160 | -4/Proximity Caves | Entered Factory 13160 | -4/Factory | Evolved 2 slots: Propulsion x1, Utility x1 13161 | -4/Factory | Identified exit to Research 13162 | -4/Factory | Loaded intel: 84 trap records 13237 | -4/Factory | Discovered new exit (range 7) 13405 | -4/Factory | Repaired Broken Fusion Bomb Launcher 13686 | -4/Factory | Identified exit to Upper Caves 13720 | -4/Factory | Loaded intel: 8 recycling unit locations 13822 | -4/Factory | Identified Transdimensional Reconstructor 13842 | -4/Factory | Central database locked down 13910 | -4/Factory | First assault squad dispatched 14024 | -4/Factory | Lost 3 parts (1p2u) 14054 | -4/Factory | Spotted B-86 Titan 14101 | -4/Factory | Scraphulk reinforcements arrived? 14110 | -4/Factory | System corruption reached 10% 14133 | -4/Factory | Lost 3 parts (2u1w) 14144 | -4/Factory | Fabricated Assault Drone Bay? 14183 | -4/Factory | Lost 3 parts (1n2w) 14227 | -4/Factory | Repaired Enh. Gauss Cannon 14281 | -4/Factory | Spotted Executioner 14282 | -4/Factory | Cargo convoy interrupted 14343 | -4/Factory | Lost 6 parts (1p5n) 14381 | -4/Factory | Repaired Antigrav System 14410 | -4/Factory | Search patrols dispatched 14430 | -4/Factory | Build established: Scavenger-Sprinter 14660 | -4/Factory | Search patrols dispatched 14801 | -4/Factory | Lost 3 parts (2n1u) 14876 | -4/Factory | Fabricated Assault Drone Bay? 14880 | -4/Factory | Fabricated Assault Drone Bay? 14928 | -4/Factory | High security lockdown imminent 14957 | -4/Factory | Lost 3 parts (1p2n) 14957 | -4/Factory | Lost 3 allies 15008 | -4/Factory | High security lockdown engaged 15089 | -4/Factory | Core integrity fell below 50% 15090 | -4/Factory | Entered Upper Caves 15090 | -4/Upper Caves | Accompanied by 1 ally 15290 | -4/Upper Caves | Encountered a Warlord checkpoint 15293 | -4/Upper Caves | Discovered new exit (range 11) 15360 | -4/Upper Caves | Learned Research emergency access door positions 15455 | -4/Upper Caves | Entered another Upper Caves area 15455 | -4/Upper Caves | Accompanied by 1 ally 15468 | -4/Upper Caves | Learned 4 Research zone layouts 15504 | -4/Upper Caves | Attracted the attention of an 0b10 checkpoint 15613 | -4/Upper Caves | Entered an active Warlord outpost 15615 | -4/Upper Caves | Learned Research emergency access door positions 15615 | -4/Upper Caves | Learned Research stockpile data 15615 | -4/Upper Caves | Learned Armory security intel 15615 | -4/Upper Caves | Learned Extension terminal intel 15615 | -4/Upper Caves | Learned Armory terminal intel 15767 | -4/Upper Caves | Attacked by a faux Warlord 16018 | -4/Upper Caves | Discovered new exit (range 10) 16288 | -4/Upper Caves | Attracted the attention of an 0b10 base 16378 | -4/Upper Caves | Lost 3 parts (2n1w) 16384 | -4/Upper Caves | Learned Factory security intel 16384 | -4/Upper Caves | Learned Extension terminal intel 16384 | -4/Upper Caves | Learned Extension garrison access intel 16450 | -4/Upper Caves | Discovered exit to Research (range 9) 16590 | -4/Upper Caves | Build established: Scavenger-Gunner 16909 | -4/Upper Caves | Entered Warlord 16910 | -4/Warlord | Identified exit to Proximity Caves 16942 | -4/Warlord | System corruption cleaned by Quarantine Array 17011 | -4/Warlord | Found Prototype Device 17011 | -4/Warlord | Identified Thermal Barrier 17028 | -4/Warlord | Found Prototype Reactor 17028 | -4/Warlord | Identified Vortex Chain Reactor 17047 | -4/Warlord | Found Prototype Processor 17047 | -4/Warlord | Identified Exp. Core Analyzer 17140 | -4/Warlord | Warlord's base attacked by MAIN.C 17196 | -4/Warlord | Found Prototype Energy Gun 17197 | -4/Warlord | Found Prototype Energy Gun 17276 | -4/Warlord | Build established: Scavenger-Sprinter 17360 | -4/Warlord | Identified Vortex Rail (x2) 17373 | -4/Warlord | P-80 Master assimilated allied 2J-9HL(g) 17379 | -4/Warlord | P-70 Sage assimilated allied PY-JQB(g) 17448 | -4/Warlord | Warlord forces counterattacked 17457 | -4/Warlord | Lost 7 allies 17535 | -4/Warlord | Lost 4 allies 17546 | -4/Warlord | Spotted Striker 17551 | -4/Warlord | Destroyed N5-927(g) 17590 | -4/Warlord | Spotted Striker 17622 | -4/Warlord | Spotted Executioner 17647 | -4/Warlord | Spotted B-86 Titan 17652 | -4/Warlord | Destroyed 13 combat bots 17653 | -4/Warlord | Lost 8 allies 17655 | -4/Warlord | Spotted B-90 Cyclops 17669 | -4/Warlord | Spotted Executioner 17670 | -4/Warlord | Destroyed B-86 Titan 17712 | -4/Warlord | Lost 3 parts (1n2w) 17718 | -4/Warlord | Lost 9 allies 17732 | -4/Warlord | Found Prototype Ballistic Cannon 17732 | -4/Warlord | Identified Hvy. Autocannon 17815 | -4/Warlord | Warlord base infiltrated, sounded retreat 17840 | -4/Warlord | Spotted Striker 17874 | -4/Warlord | Rebuked by Warlord 17897 | -4/Warlord | Found Prototype Launcher 17899 | -4/Warlord | Identified Chain Missile Launcher 17917 | -4/Warlord | Found Chain Missile Launcher 17918 | -4/Warlord | Spotted Executioner 17923 | -4/Warlord | Spotted Executioner 17943 | -4/Warlord | Found Prototype Device 17943 | -4/Warlord | Identified Exp. Shock Absorption System 17969 | -4/Warlord | Spotted Striker 17975 | -4/Warlord | Found Hvy. Autocannon 18012 | -4/Warlord | Lost 23 allies 18040 | -4/Warlord | Spotted B-86 Titan 18040 | -4/Warlord | Spotted Striker 18040 | -4/Warlord | Spotted B-90 Cyclops 18043 | -4/Warlord | Spotted Executioner 18053 | -4/Warlord | Destroyed Executioner 18057 | -4/Warlord | Allies destroyed B-90 Cyclops 18059 | -4/Warlord | Core integrity fell below 20% 18066 | -4/Warlord | Allies destroyed Striker 18071 | -4/Warlord | Found Prototype Device 18071 | -4/Warlord | Identified Adv. Kinecellerator 18080 | -4/Warlord | Lost 3 parts (1n2u) 18083 | -4/Warlord | Lost 5 allies 18092 | -4/Warlord | Found Hvy. Autocannon 18097 | -4/Warlord | Entered Proximity Caves 18097 | -3/Proximity Caves | Accompanied by 2 allies 18198 | -3/Proximity Caves | Build established: Scavenger-Gunner 18699 | -3/Proximity Caves | Spotted B-86 Titan 18759 | -3/Proximity Caves | Discovered exit to Research (range 11) 19133 | -3/Proximity Caves | Entered Research 19133 | -3/Research | Accompanied by 1 ally 19133 | -3/Research | Evolved 2 slots: Propulsion x2 19135 | -3/Research | Loaded intel: 66 trap records 19328 | -3/Research | Spotted B-86 Titan 19333 | -3/Research | Revision forces began assault on 0b10 19475 | -3/Research | Fabricated Ragnarok Missile Launcher (x1) 19489 | -3/Research | Met up with Revision 17++ 19587 | -3/Research | Build established: Scavenger-Sprinter 19701 | -3/Research | Lost 4 allies 19833 | -3/Research | Research terminal network offline 19892 | -3/Research | Build established: Scavenger-Gunner 19907 | -3/Research | Scraphulk reinforcements arrived 20009 | -3/Research | Discovered new exit (range 11) 20090 | -3/Research | Found Exp. Signal Interpreter 20142 | -3/Research | Identified exit to Research 20263 | -3/Research | Discovered new exit (range 12) 20361 | -3/Research | Found Exp. Signal Interpreter 20472 | -3/Research | Repaired Cmb. Linear Gravjet 20502 | -3/Research | Discovered new exit (range 15) 20518 | -3/Research | Identified exit to Armory 20605 | -3/Research | Spotted Striker 20804 | -3/Research | Found Prototype Processor 20804 | -3/Research | Identified Exp. Target Analyzer 20983 | -3/Research | Spotted Striker 21001 | -3/Research | Destroyed Striker 21098 | -3/Research | Spotted Striker 21112 | -3/Research | Spotted Striker 21140 | -3/Research | Spotted Striker 21140 | -3/Research | Spotted Striker 21197 | -3/Research | Scraphulk reinforcements arrived? 21221 | -3/Research | Allies destroyed Striker 21223 | -3/Research | Allies destroyed Striker 21224 | -3/Research | Discovered exit to Research (range 16) 21237 | -3/Research | Allies destroyed Striker 21239 | -3/Research | Lost 3 allies 21399 | -3/Research | Repaired Centrium Medium Armor Plating 21536 | -3/Research | Spotted Striker 21569 | -3/Research | Lost 3 allies 21590 | -3/Research | Lost 3 parts (3n) 21610 | -3/Research | Build established: Scavenger-Tank 21833 | -3/Research | Spotted Executioner 21833 | -3/Research | Spotted Striker 21853 | -3/Research | Destroyed Striker 21893 | -3/Research | Spotted Executioner 21894 | -3/Research | Spotted Striker 21896 | -3/Research | Spotted Executioner 21927 | -3/Research | Spotted Striker 21930 | -3/Research | Spotted Striker 21952 | -3/Research | Spotted Striker 21957 | -3/Research | Core integrity fell below 50% 21968 | -3/Research | Entered Testing 22028 | -3/Testing | Found Prototype Launcher 22029 | -3/Testing | Found Prototype Launcher 22033 | -3/Testing | Identified Adv. Micro-nuke Launcher (x2) 22061 | -3/Testing | Destroyed 7 combat bots 22069 | -3/Testing | Lost 3 parts (1n2w) 22240 | -3/Testing | Found Prototype Device 22240 | -3/Testing | Identified 2N-1CE's Frost Array 22255 | -3/Testing | Repaired Linear Accelerator? 22272 | -3/Testing | Spotted Striker 22385 | -3/Testing | Found Exp. Thermal Shield 22410 | -3/Testing | Found Prototype Energy Cannon 22410 | -3/Testing | Identified Cld. Nova Cannon 22467 | -3/Testing | Protovariant out of control (PD-HP5C4IZDXQ) 22467 | -3/Testing | Unleashed a protovariant (PD-HP5C4IZDXQ) 22468 | -3/Testing | First assault squad dispatched 22496 | -3/Testing | Found Prototype Device 22496 | -3/Testing | Identified Exp. Focal Shield 22575 | -3/Testing | System corruption reached 10% 22645 | -3/Testing | Scanned by Researcher 22764 | -3/Testing | Spotted Investigator 22765 | -3/Testing | Destroyed Investigator 22811 | -3/Testing | Found Med. Regenerative Plating 22835 | -3/Testing | Core integrity fell below 20% 22837 | -3/Testing | Found Ragnarok Missile Launcher 22845 | -3/Testing | Entered Research 22845 | -2/Research | Evolved 2 slots: Utility x2 23004 | -2/Research | Identified exit to Quarantine 23047 | -2/Research | Build established: Hacker-Tank 23263 | -2/Research | Destroyed 8 combat bots 23265 | -2/Research | Lost 4 parts (3n1u) 23294 | -2/Research | High security lockdown imminent 23310 | -2/Research | Lost 4 parts (1n2u1w) 23374 | -2/Research | High security lockdown engaged 23434 | -2/Research | Entered Quarantine 23440 | -2/Quarantine | Found Alien Reactor 23440 | -2/Quarantine | Identified Matter Drive 23462 | -2/Quarantine | Lost 6 parts (1p1n2u2w) 23481 | -2/Quarantine | Found Dimensional Node Initializer 23485 | -2/Quarantine | Found Dimensional Node Initializer 23507 | -2/Quarantine | Found Alien Artifact 23515 | -2/Quarantine | Found Transdimensional Reconstructor 23530 | -2/Quarantine | Found Alien Artifact 23600 | -2/Quarantine | Found Alien Artifact 23600 | -2/Quarantine | Identified Subatomic Replicator 23603 | -2/Quarantine | Used Subatomic Replicator to create Alien Artifact 23604 | -2/Quarantine | Identified Hpw. Transdimensional Reconstructor (x2) 23604 | -2/Quarantine | Warped through subspace 23649 | -2/Quarantine | Met incapacitated Sigix Warrior 23649 | -2/Quarantine | Lockdown squad dispatched 23650 | -2/Quarantine | Acquired the access code to the Sigix quarantine chamber 23656 | -2/Quarantine | Unlocked Sigix quarantine chamber 23658 | -2/Quarantine | Found Sigix Containment Pod 23695 | -2/Quarantine | Found Exp. Focal Shield 23705 | -2/Quarantine | Found Alien Artifact 23705 | -2/Quarantine | Identified Terrabomb 23705 | -2/Quarantine | Used Terrabomb 23712 | -2/Quarantine | Found Terrabomb 23733 | -2/Quarantine | Discovered new exit (range 11) 23805 | -2/Quarantine | Warped through subspace 23813 | -2/Quarantine | Repaired Broken Cmb. Antigrav System? 23860 | -2/Quarantine | System corruption reached 10% 23901 | -2/Quarantine | Used Terrabomb 23903 | -2/Quarantine | Warped through subspace 23912 | -2/Quarantine | Found Transdimensional Reconstructor 23928 | -2/Quarantine | Lost 4 parts (1p1n2u) 23950 | -2/Quarantine | Found Dimensional Node Initializer 23950 | -2/Quarantine | Initialized slip node 24070 | -2/Quarantine | Identified Supercharged TR 24070 | -2/Quarantine | Warped through subspace to slip node 24145 | -2/Quarantine | Core integrity fell below 50% 24197 | -2/Quarantine | Spotted Fortress 24223 | -2/Quarantine | Lost 20 parts (4p8n3u5w) 24249 | -2/Quarantine | Discovered new exit (range 6) 24249 | -2/Quarantine | Discovered new exit (range 6) 24252 | -2/Quarantine | Entered Protoforge 24253 | -2/Protoforge | Superfortress began startup sequence 24387 | -2/Protoforge | Spotted Hotshot 24387 | -2/Protoforge | Spotted Hotshot 24415 | -2/Protoforge | Core integrity fell below 20% 24423 | -2/Protoforge | Spotted Hotshot 24423 | -2/Protoforge | Spotted Hotshot 24434 | -2/Protoforge | Spotted Hotshot 24434 | -2/Protoforge | Warped through subspace 24442 | -2/Protoforge | Destroyed by G-73 Enforcer with Phase Gun Last Messages --------------- 24413_ The unstable cave ceiling collapses. 24413_ Slug penetrates G-73 Enforcer. 24417_ U-05 Engineer lays Concrete. 24423_ M1F9O#F&4EJ W5>&RE 2B=PL#A8 24427_ Hotshot activates shielding mode. 24429_ Cmb. Linear Gravjet destroyed. 24433_ ALERT: Potential suspicious activity detected, Programmers report to Protoforge Zone 2R. 24434_ Warped through subspace. 24435_ The unstable cave ceiling collapses. 24435_ Penetrated by Slug. 24435_ Slug penetrates Scanalyzer. 24435_ U-05 Engineer lays Concrete. 24435_ Penetrated by Slug. 24435_ Slug penetrates Scanalyzer. 24436_ U-05 Engineer lays Concrete. 24438_ Penetrated by Slug. 24438_ U-05 Engineer lays Concrete. 24439_ U-05 Engineer builds a Wall. 24440_ System corrupted: Energy discharge (-20). Map ----- +----------------------------------------------------+ | ?????????????????????????????# #??????????????? | | ?????????????????????????????# #??????????????? | | ?????????? ????????????????# #??????????????? | | ????????# ????????????????# #??????????????? | | ????????# ????????????????# ########???????? | | ????????# ???????????#+#??# #???????? | | ????????# ???????????# #??# #???????? | | ????????# ???????????# #??# #???????? | | ????????# ???????????# #??# #???????? | | ????????# #??????????# #??# ### #???????? | | ????????# #??????????# #??# #?# #???????? | | ????????# ############ #### #?# ######### | | ???? # #?# | | ????? / #?# | | ????????# #?# | | ????????# #?# | | ????????####+####+#################?### #+##### | | ???????????# #?????????????# # ??? | | ???????????# #?????????????# # ? | | ???????????# #???########### # """ # | | ???????????# #???# """" # # """ # | | ???????????# """ """ #???# " " "" # # """ # | | ???????????# """ """ #???# " " # # # | | ???????????# """ """ ###?# " # # """ # | | ???????????# ### # # "???? | | ???????????# """ """ @g + # # "???? | | ???????????# """ "" ## # # ???? | | ???????????# """ "" ## ## # # ???? | | ???????????# #######+## # # ????? | | ???????????##"" ""# # ####### | | ????????????#""R""## ^ # | | ????????????# """"## # # """ ""# # # | | ????????????########### # """ ""### # | | ??????????????????????### """ ""#?# # | | ????????????????????????# """ ^ T#?# # | | ????????????????????????# """ ""#?# # """ | | ????????????????????????# """ ""#?# # """ | | ????????????????????????# """ ""#?# # """ | | ????????????????????????# #?# / """" | | ???????????????######???# #?# # """" | | ???????????????# ??# ### #?# # """" | | ???????????????# """ ??# #?# #?# # | | ???????????????# ?# #?# #?# # | | ???????????????# """ ?# #?# #?# # | | ???????????????# # #?# #?# ####### | | ???????????????# """ # #?# #?# # | | ???????????????# + #?# #?# + | | ???????????????# """ # #?# #?# #"" | | ???????????????# # #?# #?# #"" | | ??????????????########### #?# #?# #"" | +----------------------------------------------------+ Best States ------------- Heat Dissipation 165 Coolant Potential 120 Energy Generation 105 Energy Capacity 1190 Matter Stores 300 Matter Capacity 300 Sight Range 16 Terrain Scan Range 20 Terrain Scan Density 110 Jamming Range 12 Power Amplification 80 Additional Mass Support 16 Armor Coverage 600 Resistance: KI 30 Resistance: TH 50 Propulsion Shielding 90 Utility Shielding 66 Weapon Cycling 25 Evasion (%) 71 Targeting Accuracy 12 Melee Accuracy 13 Target Analysis 9 Core Analysis 8 Armor Integrity Analysis 40 Recoil Reduction 6 Kinecelleration 50 Salvage Targeting 3 Offensive Hacking 36 Defensive Hacking 22 Trap Extractor Capacity 8 Item Schematics ----------------- Gravmag System | -6/Factory | Scanalyzed Imp. EM Pulse Cannon | -6/Factory | Scanalyzed Recoil Stabilizer | -6/Factory | Scanalyzed Adv. Recoil Stabilizer | -5/Factory | Scanalyzed Centrium Medium Armor Plating | -5/Factory | Scanalyzed Imp. Gravmag System | -5/Factory | Scanalyzed KE Penetrator | -5/Factory | Scanalyzed Fusion Bomb Launcher | -5/Factory | Scanalyzed Assault Drone Bay | -5/Zhirov | Free Exp. Heat Sink | -5/Zhirov | Free Exp. Optical Array | -5/Zhirov | Free Imp. Arc Thrower | -5/Zhirov | Free Imp. Linear Gravjet | -4/Factory | Scanalyzed Hvy. Gauss Cannon | -4/Factory | Scanalyzed Exp. Propulsion Shielding | -4/Factory | Scanalyzed Linear Accelerator | -3/Research | Scanalyzed Ragnarok Missile Launcher | -3/Research | Scanalyzed Vortex Chain Reactor | -3/Research | Scanalyzed Cmb. Linear Gravjet | -3/Research | Scanalyzed Adv. Kinecellerator | -3/Testing | Scanalyzed Cmb. Antigrav System | -3/Testing | Scanalyzed Exp. Thermal Shield | -3/Testing | Scanalyzed Adv. Micro-nuke Launcher | -3/Testing | Scanalyzed Plasma Sword | -3/Testing | Archive Hvy. Proton Cannon | -3/Testing | Archive Enh. Biometal Leg | -2/Quarantine | Archive Hvy. Gatling Laser | -2/Quarantine | Archive Com. Particle Reactor | -2/Quarantine | Archive Com. Tesla Bomb Launcher | -2/Quarantine | Archive Exp. Signal Interpreter | -2/Quarantine | Archive Robot Schematics ------------------ K-01 Serf | -3/Testing | Archive H-88 Terminator | -2/Quarantine | Archive Fabricated ------------ Gravmag System | x2 | -6/Factory Recoil Stabilizer | x2 | -5/Factory KE Penetrator | x2 | -5/Factory Assault Drone Bay | x1 | -4/Factory Assault Drone Bay | x1 | -4/Factory Assault Drone Bay | x1 | -4/Factory Ragnarok Missile Launcher | x1 | -3/Research | Preloaded Repaired ---------- Gravmag System | 15% | -5/Factory Fusion Bomb Launcher | 61% | -4/Factory | Broken Enh. Gauss Cannon | 9% | -4/Factory Antigrav System | 9% | -4/Factory Cmb. Linear Gravjet | 54% | -3/Research Centrium Medium Armor Plating | 15% | -3/Research Linear Accelerator | 2% | -3/Testing Cmb. Antigrav System | 18% | -2/Quarantine | Broken Alien Tech Used ----------------- Dimensional Node Initializer Integrated Reactor Matter Drive Subatomic Replicator High-powered Transdimensional Reconstructor Terrabomb Transdimensional Reconstructor Supercharged TR Achievements -------------- More Power To You Challenges ------------ None Game ------ Seed SigixBurstCapacitor Manual? 0 Play Time 08:06:32 Cumulative 322.8 hours Start 2025.06.19 @ 17:20:55 End 2025.06.20 @ 20:17:26 Sessions 5 Manual Loads 0 Difficulty Rogue Special Mode None Game No. 196 Rogue 196 Adventurer 0 Explorer 0 Win Type - Total 4 Types 2/0/1/1/0/0/0/0/0/0 Lore% 84 Gallery% 71 Achievement% 67 Wizard Run 0 Options --------- Layout 2 ASCII 0 Keyboard 1 Movement Vi Keybinds 0 Fullscreen 1 Font 16/Tamsyn Map View 55x47 Zoom Use 0% Tactical HUD 1 Map Filters NONE Filters NONE Steam 0 RUN: e1a07c97-4888-48b8-b142-54b1037e073d